Workbook

Sheet Risk
D3: Crop Practices | G3: Arthropod | I3: Index | J3: Low | N3: Med | R3: High
D4: Cultivar | E4: Bailey II | H4: Southern Corn Rootworm | I4: =SCR_RiskIndex -> 55 | J4: =SCR_RiskIndex -> 55 | K4: =SCR_RiskIndex -> 55 | L4: =SCR_RiskIndex -> 55 | M4: =SCR_RiskIndex -> 55 | N4: =SCR_RiskIndex -> 55 | O4: =SCR_RiskIndex -> 55 | P4: =SCR_RiskIndex -> 55 | Q4: =SCR_RiskIndex -> 55 | R4: =SCR_RiskIndex -> 55 | S4: =SCR_RiskIndex -> 55 | T4: =SCR_RiskIndex -> 55 | U4: =SCR_RiskIndex -> 55
D5: Plant Density | E5: 5 or more plants/row ft. | H5: Spider Mites | I5: =SM_RiskIndex -> 110 | J5: =SM_RiskIndex -> 110 | K5: =SM_RiskIndex -> 110 | L5: =SM_RiskIndex -> 110 | M5: =SM_RiskIndex -> 110 | N5: =SM_RiskIndex -> 110 | O5: =SM_RiskIndex -> 110 | P5: =SM_RiskIndex -> 110 | Q5: =SM_RiskIndex -> 110 | R5: =SM_RiskIndex -> 110 | S5: =SM_RiskIndex -> 110 | T5: =SM_RiskIndex -> 110 | U5: =SM_RiskIndex -> 110
D6: Planting Date | E6: 2021-05-01 | H6: Thrips | I6: =THRP_RiskIndex -> 25 | J6: =THRP_RiskIndex -> 25 | K6: =THRP_RiskIndex -> 25 | L6: =THRP_RiskIndex -> 25 | M6: =THRP_RiskIndex -> 25 | N6: =THRP_RiskIndex -> 25 | O6: =THRP_RiskIndex -> 25 | P6: =THRP_RiskIndex -> 25 | Q6: =THRP_RiskIndex -> 25 | R6: =THRP_RiskIndex -> 25 | S6: =THRP_RiskIndex -> 25 | T6: =THRP_RiskIndex -> 25 | U6: =THRP_RiskIndex -> 25
D7: Row Pattern | E7: Single (32 to 38 inches) | G7: Disease (Foliar) | I7: Index | J7: Low | N7: Med | R7: High
D8: Field | H8: Early/Late Leaf Spot | I8: =LS_RiskIndex -> 75 | J8: =LS_RiskIndex -> 75 | K8: =LS_RiskIndex -> 75 | L8: =LS_RiskIndex -> 75 | M8: =LS_RiskIndex -> 75 | N8: =LS_RiskIndex -> 75 | O8: =LS_RiskIndex -> 75 | P8: =LS_RiskIndex -> 75 | Q8: =LS_RiskIndex -> 75 | R8: =LS_RiskIndex -> 75 | S8: =LS_RiskIndex -> 75 | T8: =LS_RiskIndex -> 75 | U8: =LS_RiskIndex -> 75
D9: Borders Early Season | E9: Clean | H9: Tomato Spotted Wilt Virus | I9: =TSWV_RiskIndex -> 60 | J9: =TSWV_RiskIndex -> 60 | K9: =TSWV_RiskIndex -> 60 | L9: =TSWV_RiskIndex -> 60 | M9: =TSWV_RiskIndex -> 60 | N9: =TSWV_RiskIndex -> 60 | O9: =TSWV_RiskIndex -> 60 | P9: =TSWV_RiskIndex -> 60 | Q9: =TSWV_RiskIndex -> 60 | R9: =TSWV_RiskIndex -> 60 | S9: =TSWV_RiskIndex -> 60 | T9: =TSWV_RiskIndex -> 60 | U9: =TSWV_RiskIndex -> 60
D10: Borders Late Season | E10: Not Mowed | G10: Disease (Soil Borne) | I10: Index | J10: Low | N10: Med | R10: High
D11: Irrigation | E11: Irrigated | H11: Cylindrocladium Black Rot | I11: =CBR_RiskIndex -> 70 | J11: =CBR_RiskIndex -> 70 | K11: =CBR_RiskIndex -> 70 | L11: =CBR_RiskIndex -> 70 | M11: =CBR_RiskIndex -> 70 | N11: =CBR_RiskIndex -> 70 | O11: =CBR_RiskIndex -> 70 | P11: =CBR_RiskIndex -> 70 | Q11: =CBR_RiskIndex -> 70 | R11: =CBR_RiskIndex -> 70 | S11: =CBR_RiskIndex -> 70 | T11: =CBR_RiskIndex -> 70 | U11: =CBR_RiskIndex -> 70
D12: Previous Weed Control | E12: Good | H12: Sclerotinia | I12: =SCL_RiskIndex -> 145 | J12: =SCL_RiskIndex -> 145 | K12: =SCL_RiskIndex -> 145 | L12: =SCL_RiskIndex -> 145 | M12: =SCL_RiskIndex -> 145 | N12: =SCL_RiskIndex -> 145 | O12: =SCL_RiskIndex -> 145 | P12: =SCL_RiskIndex -> 145 | Q12: =SCL_RiskIndex -> 145 | R12: =SCL_RiskIndex -> 145 | S12: =SCL_RiskIndex -> 145 | T12: =SCL_RiskIndex -> 145 | U12: =SCL_RiskIndex -> 145
D13: Seedbed | E13: Conventional | H13: Southern Stem Rot | I13: =SSR_RiskIndex -> 60 | J13: =SSR_RiskIndex -> 60 | K13: =SSR_RiskIndex -> 60 | L13: =SSR_RiskIndex -> 60 | M13: =SSR_RiskIndex -> 60 | N13: =SSR_RiskIndex -> 60 | O13: =SSR_RiskIndex -> 60 | P13: =SSR_RiskIndex -> 60 | Q13: =SSR_RiskIndex -> 60 | R13: =SSR_RiskIndex -> 60 | S13: =SSR_RiskIndex -> 60 | T13: =SSR_RiskIndex -> 60 | U13: =SSR_RiskIndex -> 60
D14: Weeds | E14: C. Ragweed and Palmer A. | G14: Foliar-feeding Insects | I14: Index | J14: Low | N14: Med | R14: High
D15: Field Crop History | H15: Caterpillars and Worms | I15: =CNW_RiskIndex -> 35 | J15: =CNW_RiskIndex -> 35 | K15: =CNW_RiskIndex -> 35 | L15: =CNW_RiskIndex -> 35 | M15: =CNW_RiskIndex -> 35 | N15: =CNW_RiskIndex -> 35 | O15: =CNW_RiskIndex -> 35 | P15: =CNW_RiskIndex -> 35 | Q15: =CNW_RiskIndex -> 35 | R15: =CNW_RiskIndex -> 35 | S15: =CNW_RiskIndex -> 35 | T15: =CNW_RiskIndex -> 35 | U15: =CNW_RiskIndex -> 35
D16: 1 Year Ago | E16: Cotton | G16: Nematode | I16: Index | J16: Low | N16: Med | R16: High
D17: 2 Years Ago | E17: Field Corn | H17: Northern Rootknot | I17: =NRN_RiskIndex -> 35 | J17: =NRN_RiskIndex -> 35 | K17: =NRN_RiskIndex -> 35 | L17: =NRN_RiskIndex -> 35 | M17: =NRN_RiskIndex -> 35 | N17: =NRN_RiskIndex -> 35 | O17: =NRN_RiskIndex -> 35 | P17: =NRN_RiskIndex -> 35 | Q17: =NRN_RiskIndex -> 35 | R17: =NRN_RiskIndex -> 35 | S17: =NRN_RiskIndex -> 35 | T17: =NRN_RiskIndex -> 35 | U17: =NRN_RiskIndex -> 35
D18: 3 Years Ago | E18: Cotton | H18: Peanut Rootknot | I18: =PRN_RiskIndex -> 42 | J18: =PRN_RiskIndex -> 42 | K18: =PRN_RiskIndex -> 42 | L18: =PRN_RiskIndex -> 42 | M18: =PRN_RiskIndex -> 42 | N18: =PRN_RiskIndex -> 42 | O18: =PRN_RiskIndex -> 42 | P18: =PRN_RiskIndex -> 42 | Q18: =PRN_RiskIndex -> 42 | R18: =PRN_RiskIndex -> 42 | S18: =PRN_RiskIndex -> 42 | T18: =PRN_RiskIndex -> 42 | U18: =PRN_RiskIndex -> 42
D19: 4 Years ago | E19: Peanut | H19: Sting | I19: =SN_RiskIndex -> 60 | J19: =SN_RiskIndex -> 60 | K19: =SN_RiskIndex -> 60 | L19: =SN_RiskIndex -> 60 | M19: =SN_RiskIndex -> 60 | N19: =SN_RiskIndex -> 60 | O19: =SN_RiskIndex -> 60 | P19: =SN_RiskIndex -> 60 | Q19: =SN_RiskIndex -> 60 | R19: =SN_RiskIndex -> 60 | S19: =SN_RiskIndex -> 60 | T19: =SN_RiskIndex -> 60 | U19: =SN_RiskIndex -> 60
D20: Field Soil | G20: Plant | I20: Index | J20: Low | N20: Med | R20: High
D21: Drainage Class | E21: Well | H21: Weeds | I21: =WDS_RiskIndex -> 200 | J21: =WDS_RiskIndex -> 200 | K21: =WDS_RiskIndex -> 200 | L21: =WDS_RiskIndex -> 200 | M21: =WDS_RiskIndex -> 200 | N21: =WDS_RiskIndex -> 200 | O21: =WDS_RiskIndex -> 200 | P21: =WDS_RiskIndex -> 200 | Q21: =WDS_RiskIndex -> 200 | R21: =WDS_RiskIndex -> 200 | S21: =WDS_RiskIndex -> 200 | T21: =WDS_RiskIndex -> 200 | U21: =WDS_RiskIndex -> 200
D22: pH | E22: 6.2
D23: Texture | E23: Loamy Sand | G23: Red Dots - Change practices to minimize risk. Yellow Dots - Consider adjusting practices to reduce risk. Green Dots - Acceptable risk for selected practices.
D24: Leaf Spot Management
D25: Chlorothalonil Applications | E25: 3 or more
D26: Fungicide Resistance | E26: None Identified
D27: Spray Schedule | E27: Calendar
D28: Nematode History
D29: Northern Rootknot | E29: Very Low (NCDA Index < 20)
D30: Peanut Rootknot | E30: Very Low (NCDA Index < 20)
D31: Sting | E31: Very Low (NCDA Index < 20)
D32: Pest
D33: Host Crops | E33: Field Corn
D34: Pest History
D35: Cylindrocladium Black Rot | E35: Low (incidence < 5%)
D36: Leaf Spot | E36: Present but not a problem with a good fungicide program
D37: Sclerotinia | E37: No history
D38: Southern Corn Rootworm | E38: No History
D39: Southern Stem Rot | E39: No history
D40: Treatments
D41: Fumigants | E41: None
D42: Post Insecticide | E42: Lorsban (Pilot 15 G)
D45: Pre Emergence | E45: Thimet 20G
D48: Weed Mgmt | E48: None

Sheet Crop (hidden)
A1: Crop | B1: Peanut
A3: Planting Season | B3: Date | C3: Month | D3: Day of Month | E3: Day of Year
A4: Start | B4: 2021-04-23 | C4: =MONTH(B4) -> 4 | D4: =DAY(B4) -> 23 | E4: =B4-DATE(YEAR(B4),1,1)+1 -> 113
A5: End | B5: 2021-06-30 | C5: =MONTH(B5) -> 6 | D5: =DAY(B5) -> 30 | E5: =B5-DATE(YEAR(B5),1,1)+1 -> 181
A7: Title | B7: Peanut Risk Management Tool - North Carolina
A8: Subtitle
A9: Credit Lines | B9: David Jordan, Greg Buol, and Gail Wilkerson
B10: Crop and Soil Sciences
B11: Barbara Shew, Rick Brandenburg and Adrienne Gorny
B12: Entomology and Plant Pathology
B13: Derek Washburn
B14: Agricultural and Resource Economics
B16: North Carolina State University, Raleigh NC

Sheet Log_TPL (hidden)
A1: Field and Production Information
S2: Input Selection Lists
D3: Crop | E3: =Crop -> Peanut | S3: Tillage_Pracs | T3: Land_Plaster_Meth | U3: Land_Plaster_Type | V3: Digging_Eq | W3: Combine | X3: Moisture_Status | Y3: Control_Rating
D4: Field Area (A)
S5: Bed | T5: Banded | U5: Bagged | V5: 2 Row Digger | W5: 2 Row Pull Type Combine | X5: Very Dry | Y5: No Control (<5%)
D6: Soil | E6: Mapped Series | F6: % of Field | S6: Chisel | T6: Broadcast | U6: Bulk | V6: 4 Row Digger | W6: 4 Row Pull Type Combine | X6: Dry | Y6: Poor (5% to 20%)
S7: Cultivate | T7: Other | U7: Granular | V7: 6 Row Digger | W7: 6 Row Pull Type Combine | X7: Adequate | Y7: Low (20% to 50%)
S8: Disk | U8: Other | V8: Other | W8: 6 Row Self-Propelled Combine | X8: Wet | Y8: Moderate (50% to 80%)
S9: Moldboard Plow | W9: 8 Row Self-Propelled Combine | X9: Very Wet | Y9: High (80% to 90%)
S10: No Till | W10: Other | Y10: Excellent (90% to 100%)
S11: Other
S12: Rip
D13: Tillage Practice | E13: Date | F13: Equipment | S13: Rip and Bed
S14: Strip Till
D18: Lime Applications | E18: Date | F18: Rate (lbs/acre)
D19: Current Year
D20: Last Year
D22: Seed Inoculation | E22: Date | F22: Inoculant
D25: Fertilizer | E25: Date | F25: N | G25: P2O5 | H25: K2O | I25: B | J25: Cu | K25: Fe | L25: Mn | M25: Mo | N25: S | O25: Zn
F26: lbs/acre
D32: Land Plaster | E32: Date | F32: Trade Name | G32: Type | H32: Method | I32: Rate (lbs/acre)
D35: Herbicides | E35: Date | F35: Weeds | G35: Weed Size | H35: Trade Name | I35: Rate | J35: Trade Name | K35: Rate | L35: Trade Name | M35: Rate | N35: Trade Name | O35: Rate | P35: Evaluation Date | Q35: Control Rating
D36: Burndown
D37: Preplant
D38: Preemergence
D39: At Cracking
D40: First Postemergence
D41: Second Postemergence
D42: Third Postemergence
D44: Leaf Spot Program | E44: Date | F44: Severity | G44: Trade Name | H44: Rate | I44: Trade Name | J44: Rate | K44: Trade Name | L44: Rate | M44: Evaluation Date | N44: Control Rating
D58: Pest Treaments | E58: Date | F58: Severity | G58: Trade Name | H58: Rate | I58: Trade Name | J58: Rate | K58: Evaluation Date | L58: Control Rating
D59: Sclerotina Blight
D61: CBR
D63: Southern Corn Rootworm
D65: Spider Mites
D68: Insecticide Treaments | E68: Date | F68: Pest | G68: Severity | H68: Trade Name | I68: Rate | J68: Trade Name | K68: Rate | L68: Evaluation Date | M68: Control Rating
D69: In-furrow
D70: Foliar
D77: Development Dates | E77: Date
D78: Emergence
D79: First Flower
D80: First Peg
D81: Last Flower
D83: Development Moisture Status
D84: Planting to Emergence
D85: Emergence to Flowering
D86: Flowering to Pod Formation
D87: Pod Formation to Harvest
D89: Weeds at Harvest
D98: Pod Blasting Data | E98: Date | F98: White | G98: Yellow | H98: Orange | I98: Brown | J98: Black | K98: White | L98: Yellow | M98: Orange | N98: Brown | O98: Black | P98: Brown/Black
F99: Pod Count | K99: Percentage(%)
K100: =IF(SUM($F100:$J100)=0,NA(),F100/(SUM($F100:$J100))) ->  | L100: =IF(SUM($F100:$J100)=0,NA(),G100/(SUM($F100:$J100))) ->  | P100: =N100+O100 -> 
P101: =N101+O101 -> 
D105: Digging | E105: Date | F105: Equipment
D108: Harvest | E108: Date | F108: Equipment
D111: Yield Goal (lbs/acre)
D112: Yield (lbs/acre)
D113: Selling Price ($/lb)
D115: Grading Results | E115: Grams (gr) | F115: Percentage (%)
D116: Foreign Material Sample
D117: Foreign Material | F117: =IFERROR(E117/E116,0) -> 0
D118: LSK | F118: =IFERROR(E118/E116,0) -> 0
D119: Moisture
D121: Cleaned Sample
D122: Fancy | F122: =IFERROR(E122/E121,0) -> 0
D123: Kernels Riding ELK Screen
D124: Total ELK Damage
D125: Net ELK | E125: =E123-E124 -> 0 | F125: =IFERROR(E125/E121,0) -> 0
D126: Kernels Riding Prescribed Screen
D128: Total KRS
D129: Damage KRS
D130: SMKRS | E130: =E128-E129 -> 0 | F130: =IFERROR(E130/E121,0) -> 0
D131: Sound Splits | F131: =IFERROR(E131/E121,0) -> 0
D132: Total SMK | F132: =F130+F131 -> 0
D133: Other Kernels | F133: =IFERROR(E133/E121,0) -> 0
D134: Damage Splits
D135: Total Damage | F135: =IFERROR(E135/E121,0) -> 0
D136: Total Kernels | F136: =F132+F133+F134+F135 -> 0
D137: Hulls | F137: =IFERROR(E137/E121,0) -> 0
D138: Total Kernels & Halls | F138: =F136+F137 -> 0
D139: Freeze Damage | F139: =IFERROR(E139/E121,0) -> 0
D140: Concealed RMD | F140: =IFERROR(E140/E121,0) -> 0
D141: Remarks
D144: Monthly Soil Moisture Conditions
D145: May
D146: June
D147: July
D148: August
D149: September
D150: October
D152: Rainfall/Irrigation | E152: Date | F152: Amount (in) | G152: Month | I152: Month | J152: Amount (in)
G153: =IF(ISBLANK(E153),"",TEXT(E153,"mmm")) ->  | I153: Jan | J153: =SUMIF(G$153:G$252,"=" & I153,F$153:F$252) -> 0
G154: =IF(ISBLANK(E154),"",TEXT(E154,"mmm")) ->  | I154: Feb | J154: =SUMIF(G$153:G$252,"=" & I154,F$153:F$252) -> 0
I155: Mar | J155: 0
I156: Apr | J156: 0
I157: May | J157: 0
I158: Jun | J158: 0
I159: Jul | J159: 0
I160: Aug | J160: 0
I161: Sep | J161: 0
I162: Oct | J162: 0
I163: Nov | J163: 0
I164: Dec | J164: 0
G218: =IF(ISBLANK(E218),"",TEXT(E218,"mmm")) -> 

Sheet Pests (hidden)
A1: PestType | B1: Pest | C1: PestID
A2: Arthropod | B2: Southern Corn Rootworm | C2: SCR
A3: Arthropod | B3: Spider Mites | C3: SM
A4: Arthropod | B4: Thrips | C4: THRP
A5: Disease (Foliar) | B5: Early/Late Leaf Spot | C5: LS
A6: Disease (Foliar) | B6: Tomato Spotted Wilt Virus | C6: TSWV
A7: Disease (Soil Borne) | B7: Cylindrocladium Black Rot | C7: CBR
A8: Disease (Soil Borne) | B8: Sclerotinia | C8: SCL
A9: Disease (Soil Borne) | B9: Southern Stem Rot | C9: SSR
A10: Foliar-feeding Insects | B10: Caterpillars and Worms | C10: CNW
A11: Nematode | B11: Northern Rootknot | C11: NRN
A12: Nematode | B12: Peanut Rootknot | C12: PRN
A13: Nematode | B13: Sting | C13: SN
A14: Plant | B14: Weeds | C14: WDS

Sheet Lists (hidden)
A1: Category | B1: Category_Pest | C1: CategoryID | D1: Category_List | E1: Category_List_Type | F1: Months | G1: Land_Area_Units | H1: Crop_Practices\Cultivar | I1: Treatments\Post_Insecticide | J1: Pest_History\Southern_Corn_Rootworm | K1: Leaf_Spot_Management\Spray_Schedule | L1: Crops | M1: Treatments\Pre_Emergence | N1: Pest_History\Leaf_Spot | O1: Crop_Practices\Plant_Density | P1: Crop_Practices\Planting_Date_CBR | Q1: Pest_History\Cylindrocladium_Black_Rot | R1: Treatments\Fumigants | S1: Crop_Practices\Row_Pattern | T1: Pest_History\Sclerotinia | U1: Pest_History\Southern_Stem_Rot | V1: Nematode_History | W1: Treatments\Weed_Mgmt | X1: Field\Weeds | Y1: Field\Borders_Early_Season | Z1: Field\Borders_Late_Season | AA1: Field\Irrigation | AB1: Field\Seedbed | AC1: Field\Previous_Weed_Control | AD1: Field_Soil\Drainage_Class | AE1: Field_Soil\pH_CBR | AF1: Field_Soil\pH_SCL | AG1: Field_Soil\Texture | AH1: Crop_Practices\Planting_Date_SCR | AI1: Crop_Practices\Planting_Date_THRP | AJ1: Crop_Practices\Planting_Date_LS | AK1: Crop_Practices\Planting_Date_TSWV | AL1: Crop_Practices\Planting_Date_SCL | AM1: Leaf_Spot_Management\Chlorothalonil_Applications | AN1: Crop_Practices\Planting_Date_CNW | AO1: Leaf_Spot_Management\Fungicide_Resistance
A2: Crop_Practices\Cultivar | C2: Crop_Practices\Cultivar | D2: Crop_Practices\Cultivar | E2: Single | F2: (01) January | G2: ac | H2: Bailey | I2: 01|None | J2: 01|No History | K2: Advisory throughout season | L2: Clary Sage | M2: Acephate | N2: 01|No history | O2: 1 to 2 plants/row ft. | P2: 001 to 125 | Q2: 01|No History | R2: 01|None | S2: Single (32 to 38 inches) | T2: No history | U2: 01|No history | V2: 01|Very Low (NCDA Index < 20) | W2: 01|None | X2: Annual Grass | Y2: Clean | Z2: 01|Not Mowed | AA2: 01|Non-Irrigated | AB2: 01|Conventional | AC2: 01|Poor | AD2: 01|Well | AE2: 5.7 or lower | AF2: 5.7 or lower | AG2: Loam | AH2: 001 to 120 | AI2: 001 to 125 | AJ2: 001 to 140 | AK2: 001 to 125 | AL2: 001 to 140 | AM2: 01|Less then 3 | AN2: 001 to 120 | AO2: 01|None Identified
A3: Crop_Practices\Plant_Density | C3: Crop_Practices\Plant_Density | D3: Crop_Practices\Plant_Density | E3: Single | F3: (02) February | G3: ha | H3: Bailey II | I3: 02|Acephate | J3: 02|Low | K3: Calendar | L3: Cotton | M3: Admire Pro | N3: 02|Present but not a problem with a good fungicide program | O3: 3 to 4 plants/row ft. | P3: 126 to 140 | Q3: 02|Low (incidence < 5%) | R3: 02|Metam Sodium | S3: Twin (7 to 10 inches) | T3: Present and requires 0 sprays per year | U3: 02|Present but not a problem with a good fungicide program | V3: 02|Low (20 ≤ NCDA Index < 40) | W3: 02|PPI | X3: Annual Grass (ACC and ALS Resistant) | Y3: Weeds/Brush | Z3: 02|Mowed | AA3: 02|Periodic Irrigation | AB3: 02|No cover crop/No till | AC3: 02|Fair | AD3: 02|Moderately Well | AE3: 5.8 or higher | AF3: 5.8 to 6.5 | AG3: Loamy Sand | AH3: 121 to 135 | AI3: 126 to 135 | AJ3: 141 to 365 | AK3: 126 to 135 | AL3: 141 to 365 | AM3: 02|3 or more | AN3: 121 to 135 | AO3: 02|Group 3 (DMI)
A4: Crop_Practices\Planting_Date | B4: CBR | C4: Crop_Practices\Planting_Date | D4: Crop_Practices\Planting_Date_CBR | E4: Date | F4: (03) March | H4: Champs | I4: 03|Brigade | J4: 03|Moderate | K4: Calendar, skipping when dry | L4: Fallow | M4: AgLogic | N4: 03|A problem even with good fungicide program | O4: 5 or more plants/row ft. | P4: 141 to 365 | Q4: 03|Moderate (incidence 5-10%) | R4: 03|Telone II | T4: Present and requires 1 spray per year | U4: 03|A problem even with good fungicide program | V4: 03|Moderate (40 ≤ NCDA Index < 60) | W4: 03|PPI + PRE | X4: Annual Grass (ACC Resistant) | AA4: 03|Irrigated | AB4: 03|No cover crop/Strip till | AC4: 03|Good | AD4: 03|Somewhat Poorly | AF4: 6.6 or higher | AG4: Sandy Loam | AH4: 136 to 365 | AI4: 136 to 365 | AK4: 136 to 365 | AN4: 136 to 365 | AO4: 03|Group 7 (SDHI)
A5: Crop_Practices\Planting_Date | B5: CNW | C5: Crop_Practices\Planting_Date | D5: Crop_Practices\Planting_Date_CNW | E5: Date | F5: (04) April | H5: Emery | I5: 04|Comite | J5: 04|High | L5: Field Corn | M5: Imidacloprid (Generic) | Q5: 04|High (incidence > 10%) | T5: Present and requires 2 or more sprays per year | V5: 04|High (NCDA Index ≥ 60) | W5: 04|PPL | X5: Annual Grass (ALS Resistant) | AB5: 04|Rye/No till | AD5: 04|Poorly | AO5: 04|Group 11 (QoI)
A6: Crop_Practices\Planting_Date | B6: LS | C6: Crop_Practices\Planting_Date | D6: Crop_Practices\Planting_Date_LS | E6: Date | F6: (05) May | H6: Sullivan | I6: 05|Danitol | L6: Forage Grasses | M6: None | W6: 05|PRE | X6: C. Lambsquarter | AB6: 05|Rye/Strip till | AO6: 05|Group M (Multi-Site)
A7: Crop_Practices\Planting_Date | B7: SCL | C7: Crop_Practices\Planting_Date | D7: Crop_Practices\Planting_Date_SCL | E7: Date | F7: (06) June | H7: Wynne | I7: 06|Lannate | L7: Melons | M7: Phorate 20G | W7: 06|PRE + EPOST | X7: C. Ragweed | AB7: 06|Fertilized Rye/No till | AO7: 06|Group 3 and 7
A8: Crop_Practices\Planting_Date | B8: SCR | C8: Crop_Practices\Planting_Date | D8: Crop_Practices\Planting_Date_SCR | E8: Date | F8: (07) July | I8: 07|Lorsban (Pilot 15 G) | L8: Other | M8: Proline | W8: 07|PRE + EPOST + Hand Weed | X8: C. Ragweed (ALS and PPO Resistant) | AB8: 07|Fertilized Rye/Strip till | AO8: 07|Group 3 and 11
A9: Crop_Practices\Planting_Date | B9: THRP | C9: Crop_Practices\Planting_Date | D9: Crop_Practices\Planting_Date_THRP | E9: Date | F9: (08) August | I9: 08|Non-pyrethroids | L9: Peanut | M9: Propulse | W9: 08|PRE + EPOST + MPOST | X9: C. Ragweed (ALS Resistant) | AB9: 08|Wheat/No till | AO9: 08|Group 3 and M
A10: Crop_Practices\Planting_Date | B10: TSWV | C10: Crop_Practices\Planting_Date | D10: Crop_Practices\Planting_Date_TSWV | E10: Date | F10: (09) September | I10: 09|Portal | L10: Small Grains | M10: Thimet 20G | W10: 09|PRE + EPOST + MPOST + Hand Weed | X10: C. Ragweed (PPO Resistant) | AB10: 09|Wheat/Strip till | AO10: 09|Group 7 and 11
A11: Crop_Practices\Row_Pattern | C11: Crop_Practices\Row_Pattern | D11: Crop_Practices\Row_Pattern | E11: Single | F11: (10) October | I11: 10|Pyrethroids | L11: Sorghum | M11: Velum Total | W11: 10|PRE + EPOST + MPOST + LPOST | X11: C. Ragweed and Palmer A. | AO11: 10|Group 7 and M
A12: Field\Borders_Early_Season | C12: Field\Borders_Early_Season | D12: Field\Borders_Early_Season | E12: Single | F12: (11) November | L12: Soybean | W12: 11|PRE + EPOST + MPOST + LPOST + Hand Weed | X12: C. Ragweed and Palmer A. (ALS and PPO Resistant) | AO12: 11|Group 11 and M
A13: Field\Borders_Late_Season | C13: Field\Borders_Late_Season | D13: Field\Borders_Late_Season | E13: Single | F13: (12) December | L13: Sweet Corn | W13: 12|EPOST | X13: C. Ragweed and Palmer A. (ALS Resistant) | AO13: 12|Group 3, 7, and 11
A14: Field\Irrigation | C14: Field\Irrigation | D14: Field\Irrigation | E14: Single | L14: Sweetpotato | W14: 13|MPOST | X14: C. Ragweed and Palmer A. (PPO Resistant) | AO14: 13|Group 3, 7, and M
A15: Field\Previous_Weed_Control | C15: Field\Previous_Weed_Control | D15: Field\Previous_Weed_Control | E15: Single | L15: Tobacco | W15: 14|LPOST | X15: Eclipta | AO15: 14|Group 3, 11, and M
A16: Field\Seedbed | C16: Field\Seedbed | D16: Field\Seedbed | E16: Single | L16: Vegetables | X16: Others | AO16: 15|Group 7, 11, and M
A17: Field\Weeds | C17: Field\Weeds | D17: Field\Weeds | E17: Single | X17: Palmer A. | AO17: 16|Group 3, 7, 11, and M
A18: Field_Crop_History\1_Year_Ago | C18: Field_Crop_History\1_Year_Ago | D18: Crops | E18: Single | X18: Palmer A. (ALS and PPO Resistant)
A19: Field_Crop_History\2_Years_Ago | C19: Field_Crop_History\2_Years_Ago | D19: Crops | E19: Single | X19: Palmer A. (ALS Resistant)
A20: Field_Crop_History\3_Years_Ago | C20: Field_Crop_History\3_Years_Ago | D20: Crops | E20: Single | X20: Palmer A. (PPO Resistant)
A21: Field_Crop_History\4_Years_ago | C21: Field_Crop_History\4_Years_ago | D21: Crops | E21: Single | X21: Sedges
A22: Field_Soil\Drainage_Class | C22: Field_Soil\Drainage_Class | D22: Field_Soil\Drainage_Class | E22: Single | X22: Sedges (ALS Resistant)
A23: Field_Soil\pH | B23: CBR | C23: Field_Soil\pH | D23: Field_Soil\pH_CBR | E23: pH | X23: Sicklepod
A24: Field_Soil\pH | B24: SCL | C24: Field_Soil\pH | D24: Field_Soil\pH_SCL | E24: pH
A25: Field_Soil\Texture | C25: Field_Soil\Texture | D25: Field_Soil\Texture | E25: Single
A26: Leaf_Spot_Management\Chlorothalonil_Applications | C26: Leaf_Spot_Management\Chlorothalonil_Applications | D26: Leaf_Spot_Management\Chlorothalonil_Applications | E26: Single
A27: Leaf_Spot_Management\Fungicide_Resistance | C27: Leaf_Spot_Management\Fungicide_Resistance | D27: Leaf_Spot_Management\Fungicide_Resistance | E27: Single
A28: Leaf_Spot_Management\Spray_Schedule | C28: Leaf_Spot_Management\Spray_Schedule | D28: Leaf_Spot_Management\Spray_Schedule | E28: Single
A29: Nematode_History\Northern_Rootknot | C29: Nematode_History\Northern_Rootknot | D29: Nematode_History | E29: Single
A30: Nematode_History\Peanut_Rootknot | C30: Nematode_History\Peanut_Rootknot | D30: Nematode_History | E30: Single
A31: Nematode_History\Sting | C31: Nematode_History\Sting | D31: Nematode_History | E31: Single
A32: Pest\Host_Crops | C32: Pest\Host_Crops | D32: Crops | E32: Single
A33: Pest_History\Cylindrocladium_Black_Rot | C33: Pest_History\Cylindrocladium_Black_Rot | D33: Pest_History\Cylindrocladium_Black_Rot | E33: Single
A34: Pest_History\Leaf_Spot | C34: Pest_History\Leaf_Spot | D34: Pest_History\Leaf_Spot | E34: Single
A35: Pest_History\Sclerotinia | C35: Pest_History\Sclerotinia | D35: Pest_History\Sclerotinia | E35: Single
A36: Pest_History\Southern_Corn_Rootworm | C36: Pest_History\Southern_Corn_Rootworm | D36: Pest_History\Southern_Corn_Rootworm | E36: Single
A37: Pest_History\Southern_Stem_Rot | C37: Pest_History\Southern_Stem_Rot | D37: Pest_History\Southern_Stem_Rot | E37: Single
A38: Treatments\Fumigants | C38: Treatments\Fumigants | D38: Treatments\Fumigants | E38: Single
A39: Treatments\Post_Insecticide | C39: Treatments\Post_Insecticide | D39: Treatments\Post_Insecticide | E39: Multi
A40: Treatments\Pre_Emergence | C40: Treatments\Pre_Emergence | D40: Treatments\Pre_Emergence | E40: Multi
A41: Treatments\Weed_Mgmt | C41: Treatments\Weed_Mgmt | D41: Treatments\Weed_Mgmt | E41: Single

Sheet Costs (hidden)
A1: Land Area Units | B1: ac | H1: =Cost_Header -> Cost ($/ac) | K1: =CONCATENATE("Person Hours (hrs/",sel_Land_Area_Units,")") -> Person Hours (hrs/ac)
A2: Category | B2: Item | C2: =CONCATENATE("Cost ($/",sel_Land_Area_Units,")") -> Cost ($/ac) | D2: Multiplier | E2: =CONCATENATE("Person Hours (hrs/",sel_Land_Area_Units,")") -> Person Hours (hrs/ac) | G2: Category | H2: Max | I2: Min | J2: Sel | K2: Max | L2: Min | M2: Sel | N2: Selection
A3: Base_Cost | C3: 565 | G3: Base_Cost | H3: =Cost_Base -> 565 | I3: =Cost_Base -> 565 | J3: =Cost_Base -> 565 | K3: =PersonHours_Base -> 0 | L3: =PersonHours_Base -> 0 | M3: =PersonHours_Base -> 0
A4: Crop_Practices\Cultivar | B4: Bailey | C4: 45 | G4: Crop_Practices\Cultivar | Crop_Practices\Plant_Density | Crop_Practices\Row_Pattern | H4: =calcCostMax(G4,Category) -> 172.5 | I4: =calcCostMin(G4) -> 45 | J4: =calcCost(G4,N4,Category) -> 112.5 | K4: =calcPersonHrsMax(G4,Category) -> 0 | L4: =calcPersonHrsMin(G4) -> 0 | M4: =calcPersonHrs(G4,N4,Category) -> 0 | N4: =CONCATENATE(IF(ISBLANK(sel_Crop_Practices\Cultivar),"",sel_Crop_Practices\Cultivar)," | ",IF(ISBLANK(sel_Crop_Practices\Plant_Density),"",sel_Crop_Practices\Plant_Density)," | ",IF(ISBLANK(sel_Crop_Practices\Row_Pattern),"",sel_Crop_Practices\Row_Pattern)) -> Bailey II | 5 or more plants/row ft. | Single (32 to 38 inches)
A5: Crop_Practices\Cultivar | B5: Bailey II | C5: 45 | G5: Field\Irrigation | H5: =calcCostMax(G5,Category) -> 100 | I5: =calcCostMin(G5) -> 0 | J5: =calcCost(G5,N5,Category) -> 100 | K5: =calcPersonHrsMax(G5,Category) -> 0 | L5: =calcPersonHrsMin(G5) -> 0 | M5: =calcPersonHrs(G5,N5,Category) -> 0 | N5: =CONCATENATE(IF(ISBLANK(sel_Field\Irrigation),"",sel_Field\Irrigation)) -> Irrigated
A6: Crop_Practices\Cultivar | B6: Champs | C6: 50 | G6: Leaf_Spot_Management\Spray_Schedule | H6: =calcCostMax(G6,Category) -> 83 | I6: =calcCostMin(G6) -> 51 | J6: =calcCost(G6,N6,Category) -> 83 | K6: =calcPersonHrsMax(G6,Category) -> 0 | L6: =calcPersonHrsMin(G6) -> 0 | M6: =calcPersonHrs(G6,N6,Category) -> 0 | N6: =CONCATENATE(IF(ISBLANK(sel_Leaf_Spot_Management\Spray_Schedule),"",sel_Leaf_Spot_Management\Spray_Schedule)) -> Calendar
A7: Crop_Practices\Cultivar | B7: Emery | C7: 60 | G7: Treatments\Fumigants | H7: =calcCostMax(G7,Category) -> 45 | I7: =calcCostMin(G7) -> 0 | J7: =calcCost(G7,N7,Category) -> 0 | K7: =calcPersonHrsMax(G7,Category) -> 0 | L7: =calcPersonHrsMin(G7) -> 0 | M7: =calcPersonHrs(G7,N7,Category) -> 0 | N7: =CONCATENATE(IF(ISBLANK(sel_Treatments\Fumigants),"",sel_Treatments\Fumigants)) -> None
A8: Crop_Practices\Cultivar | B8: Sullivan | C8: 47 | G8: Treatments\Post_Insecticide | H8: =calcCostMax(G8,Category) -> 176 | I8: =calcCostMin(G8) -> 0 | J8: =calcCost(G8,N8,Category) -> 35 | K8: =calcPersonHrsMax(G8,Category) -> 0 | L8: =calcPersonHrsMin(G8) -> 0 | M8: =calcPersonHrs(G8,N8,Category) -> 0 | N8: =CONCATENATE(IF(ISBLANK(sel_Treatments\Post_Insecticide),"",sel_Treatments\Post_Insecticide)) -> Lorsban (Pilot 15 G)
A9: Crop_Practices\Cultivar | B9: Wynne | C9: 60 | G9: Treatments\Pre_Emergence | H9: =calcCostMax(G9,Category) -> 162 | I9: =calcCostMin(G9) -> 0 | J9: =calcCost(G9,N9,Category) -> 16 | K9: =calcPersonHrsMax(G9,Category) -> 0 | L9: =calcPersonHrsMin(G9) -> 0 | M9: =calcPersonHrs(G9,N9,Category) -> 0 | N9: =CONCATENATE(IF(ISBLANK(sel_Treatments\Pre_Emergence),"",sel_Treatments\Pre_Emergence)) -> Thimet 20G
A10: Crop_Practices\Plant_Density | B10: 1 to 2 plants/row ft. | D10: 1 | G10: Treatments\Weed_Mgmt | H10: =calcCostMax(G10,Category) -> 120 | I10: =calcCostMin(G10) -> 0 | J10: =calcCost(G10,N10,Category) -> 0 | K10: =calcPersonHrsMax(G10,Category) -> 0 | L10: =calcPersonHrsMin(G10) -> 0 | M10: =calcPersonHrs(G10,N10,Category) -> 0 | N10: =CONCATENATE(IF(ISBLANK(sel_Treatments\Weed_Mgmt),"",sel_Treatments\Weed_Mgmt)) -> None
A11: Crop_Practices\Plant_Density | B11: 3 to 4 plants/row ft. | D11: 1.75
A12: Crop_Practices\Plant_Density | B12: 5 or more plants/row ft. | D12: 2.5 | G12: Total | H12: =SUM(H$3:H10) -> 1423.5 | I12: =SUM(I$3:I10) -> 661 | J12: =IF(ISERROR(SUM(J$3:J10)),0,SUM(J$3:J10)) -> 911.5 | K12: =SUM(K$3:K10) -> 0 | L12: =SUM(L$3:L10) -> 0 | M12: =IF(ISERROR(SUM(M$3:M10)),0,SUM(M$3:M10)) -> 0
A13: Crop_Practices\Row_Pattern | B13: Single (32 to 38 inches) | D13: 1
A14: Crop_Practices\Row_Pattern | B14: Twin (7 to 10 inches) | D14: 1.15 | H14: =CONCATENATE("Cost Thresholds ($/",sel_Land_Area_Units,")") -> Cost Thresholds ($/ac) | K14: =CONCATENATE("Person Hour Thresholds (hrs/",sel_Land_Area_Units,")") -> Person Hour Thresholds (hrs/ac)
A15: Field\Irrigation | B15: Non-Irrigated | C15: 0 | G15: High | H15: =Cost_Min + 0.66667*(Cost_Max-Cost_Min) -> 1169.335875 | K15: =PersonHours_Min + 0.66667*(PersonHours_Max-PersonHours_Min) -> 0
A16: Field\Irrigation | B16: Periodic Irrigation | C16: 50 | G16: Moderate | H16: =Cost_Min + 0.33333*(Cost_Max-Cost_Min) -> 915.164125 | K16: =PersonHours_Min + 0.33333*(PersonHours_Max-PersonHours_Min) -> 0
A17: Field\Irrigation | B17: Irrigated | C17: 100
A18: Leaf_Spot_Management\Spray_Schedule | B18: Advisory throughout season | C18: 51 | H18: =CONCATENATE("Cost Ranges ($/",sel_Land_Area_Units,")") -> Cost Ranges ($/ac) | K18: =CONCATENATE("Person Hour Ranges (hrs/",sel_Land_Area_Units,")") -> Person Hour Ranges (hrs/ac)
A19: Leaf_Spot_Management\Spray_Schedule | B19: Calendar | C19: 83 | G19: Base | H19: =Cost_Base -> 565 | K19: =PersonHours_Base -> 0
A20: Leaf_Spot_Management\Spray_Schedule | B20: Calendar, skipping when dry | C20: 67 | G20: Low | H20: =Cost_Moderate-Cost_Base -> 350.164125 | K20: =PersonHours_Moderate-PersonHours_Base -> 0
A21: Treatments\Fumigants | B21: None | C21: 0 | G21: Moderate | H21: =Cost_High-Cost_Moderate -> 254.17175 | K21: =PersonHours_High-PersonHours_Moderate -> 0
A22: Treatments\Fumigants | B22: Metam Sodium | C22: 30 | G22: High | H22: =Cost_Max-Cost_High -> 254.164125 | K22: =PersonHours_Max-PersonHours_High -> 0
A23: Treatments\Fumigants | B23: Telone II | C23: 45
A24: Treatments\Post_Insecticide | B24: None | C24: 0 | G24: =CONCATENATE("Estimated Cost: $",ROUNDUP(TRUNC(Cost,2),0),"/",sel_Land_Area_Units) -> Estimated Cost: $912/ac
A25: Treatments\Post_Insecticide | B25: Acephate | C25: 8
A26: Treatments\Post_Insecticide | B26: Brigade | C26: 18
A27: Treatments\Post_Insecticide | B27: Comite | C27: 26
A28: Treatments\Post_Insecticide | B28: Danitol | C28: 26
A29: Treatments\Post_Insecticide | B29: Lannate | C29: 23
A30: Treatments\Post_Insecticide | B30: Lorsban (Pilot 15 G) | C30: 35
A31: Treatments\Post_Insecticide | B31: Non-pyrethroids | C31: 15 | G31: =CONCATENATE("Estimated Person Hours: ",ROUNDUP(TRUNC(PersonHours,2),0)," hrs/",sel_Land_Area_Units) -> Estimated Person Hours: 0 hrs/ac
A32: Treatments\Post_Insecticide | B32: Portal | C32: 25
A33: Treatments\Pre_Emergence | B33: Acephate | C33: 15
A34: Treatments\Pre_Emergence | B34: Admire Pro | C34: 19
A35: Treatments\Pre_Emergence | B35: AgLogic | C35: 20
A36: Treatments\Pre_Emergence | B36: Imidacloprid (Generic) | C36: 12
A37: Treatments\Pre_Emergence | B37: None | C37: 0
A38: Treatments\Pre_Emergence | B38: Phorate 20G | C38: 12
A39: Treatments\Pre_Emergence | B39: Proline | C39: 22
A40: Treatments\Pre_Emergence | B40: Propulse | C40: 20
A41: Treatments\Pre_Emergence | B41: Thimet 20G | C41: 16
A42: Treatments\Pre_Emergence | B42: Velum Total | C42: 26
A43: Treatments\Weed_Mgmt | B43: None | C43: 0
A44: Treatments\Weed_Mgmt | B44: PPI | C44: 10
A45: Treatments\Weed_Mgmt | B45: PPI + PRE | C45: 25
A46: Treatments\Weed_Mgmt | B46: PPL | C46: 10
A47: Treatments\Weed_Mgmt | B47: PRE | C47: 15
A48: Treatments\Weed_Mgmt | B48: PRE + EPOST | C48: 30
A49: Treatments\Weed_Mgmt | B49: PRE + EPOST + Hand Weed | C49: 90
A50: Treatments\Weed_Mgmt | B50: PRE + EPOST + MPOST | C50: 45
A51: Treatments\Weed_Mgmt | B51: PRE + EPOST + MPOST + Hand Weed | C51: 105
A52: Treatments\Weed_Mgmt | B52: PRE + EPOST + MPOST + LPOST | C52: 60
A53: Treatments\Weed_Mgmt | B53: PRE + EPOST + MPOST + LPOST + Hand Weed | C53: 120
A54: Treatments\Weed_Mgmt | B54: EPOST | C54: 15
A55: Treatments\Weed_Mgmt | B55: MPOST | C55: 15
A56: Treatments\Weed_Mgmt | B56: LPOST | C56: 15

Sheet Logos (hidden)

Sheet Pest_Report (hidden)
A1: Peanut - Weeds Risk Summary
A6: Crop Practices\Plant Density | C6: Risk Points
B7: 1 to 2 plants/row ft. | C7: 30 | D7: 5
B8: 3 to 4 plants/row ft. | C8: 20
B9: 5 or more plants/row ft.* | C9: 5
A10: Field\Irrigation | C10: Risk Points
B11: Irrigated*, Periodic Irrigation | C11: 20 | D11: 20
B12: Non-Irrigated | C12: 0
A13: Field\Previous Weed Control | C13: Risk Points
B14: Poor | C14: 30 | D14: 10
B15: Fair | C15: 20
B16: Good* | C16: 10
A17: Field\Seedbed | C17: Risk Points
B18: Conventional*, No cover crop/Strip till | C18: 90 | D18: 90
B19: No cover crop/No till, Wheat/Strip till | C19: 80
B20: Wheat/No till | C20: 60
B21: Rye/Strip till | C21: 50
B22: Fertilized Rye/Strip till, Rye/No till | C22: 30
B23: Fertilized Rye/No till | C23: 10
A24: Field\Weeds | C24: Risk Points
B25: C. Ragweed and Palmer A. (ALS and PPO Resistant) | C25: 150 | D25: 70
B26: C. Ragweed and Palmer A. (PPO Resistant), Palmer A. (ALS and PPO Resistant), Palmer A. (PPO Resistant) | C26: 100
B27: Annual Grass (ACC and ALS Resistant), C. Ragweed and Palmer A.*, C. Ragweed and Palmer A. (ALS Resistant), Palmer A., Palmer A. (ALS Resistant) | C27: 70
B28: Annual Grass (ACC Resistant), Annual Grass (ALS Resistant), C. Ragweed (ALS and PPO Resistant), C. Ragweed (PPO Resistant), Sedges (ALS Resistant) | C28: 50
B29: Annual Grass, C. Lambsquarter, C. Ragweed, C. Ragweed (ALS Resistant), Eclipta, Sedges, Sicklepod | C29: 20
B30: Others | C30: 10
A31: Field Crop History\1 Year Ago | C31: Risk Points
B32: Fallow, Soybean, Sweetpotato, Tobacco | C32: 15 | D32: 5
B33: Clary Sage, Melons, Other, Peanut, Sorghum, Vegetables | C33: 10
B34: Cotton*, Forage Grasses, Small Grains, Sweet Corn | C34: 5
B35: Field Corn | C35: 0
A36: Treatments\Weed Mgmt | C36: Risk Points
B37: EPOST, None*, PPL | C37: 0 | D37: 0
B38: LPOST, PPI, PRE | C38: -55
B39: MPOST, PPI + PRE, PRE + EPOST | C39: -90
B40: PRE + EPOST + MPOST | C40: -105
B41: PRE + EPOST + MPOST + LPOST | C41: -130
B42: PRE + EPOST + Hand Weed, PRE + EPOST + MPOST + Hand Weed, PRE + EPOST + MPOST + LPOST + Hand Weed | C42: -150
A44: * Selected options used in calculating pest risk. Note: Reduction in pest risk value by a control practice will be less under low risk conditions.

Sheet SCR (hidden)
A1: Southern Corn Rootworm
A2: Category | B2: Risk Level | C2: Risk Level Description | D2: Points | H2: Category | I2: Max | J2: Min | K2: Risk | L2: Selection
A3: Crop_Practices\Cultivar | B3: 1 | C3: Bailey|Bailey II|Emery|Sullivan|Wynne | D3: 20 | H3: Field\Irrigation | I3: 45 | J3: 0 | K3: =getRiskValue("A:A",H3,J3,L3,"Single") -> 45 | L3: =IF(ISBLANK(sel_Field\Irrigation),"",sel_Field\Irrigation) -> Irrigated
A4: Crop_Practices\Cultivar | B4: 2 | C4: Champs | D4: 10 | H4: Crop_Practices\Cultivar | I4: 20 | J4: 10 | K4: =getRiskValue("A:A",H4,J4,L4,"Single") -> 20 | L4: =IF(ISBLANK(sel_Crop_Practices\Cultivar),"",sel_Crop_Practices\Cultivar) -> Bailey II
A5: Crop_Practices\Planting_Date | B5: 1 | C5: 136 to 365 | D5: 15 | H5: Field_Soil\Drainage_Class | I5: 20 | J5: 5 | K5: =getRiskValue("A:A",H5,J5,L5,"Single") -> 5 | L5: =IF(ISBLANK(sel_Field_Soil\Drainage_Class),"",sel_Field_Soil\Drainage_Class) -> Well
A6: Crop_Practices\Planting_Date | B6: 2 | C6: 121 to 135 | D6: 10 | H6: Crop_Practices\Planting_Date | I6: 15 | J6: 5 | K6: =getRiskValue("A:A",H6,J6,L6,"Date") -> 10 | L6: =IF(ISBLANK(sel_Crop_Practices\Planting_Date),"",sel_Crop_Practices\Planting_Date) -> 2021-05-01
A7: Crop_Practices\Planting_Date | B7: 3 | C7: 001 to 120 | D7: 5 | H7: Field_Soil\Texture | I7: 15 | J7: 5 | K7: =getRiskValue("A:A",H7,J7,L7,"Single") -> 5 | L7: =IF(ISBLANK(sel_Field_Soil\Texture),"",sel_Field_Soil\Texture) -> Loamy Sand
A8: Field\Irrigation | B8: 1 | C8: Irrigated | D8: 45 | H8: Pest_History\Southern_Corn_Rootworm | I8: 15 | J8: 0 | K8: =getRiskValue("A:A",H8,J8,L8,"Single") -> 0 | L8: =IF(ISBLANK(sel_Pest_History\Southern_Corn_Rootworm),"",sel_Pest_History\Southern_Corn_Rootworm) -> No History
A9: Field\Irrigation | B9: 2 | C9: Periodic Irrigation | D9: 20 | H9: Treatments\Post_Insecticide | I9: 0 | J9: -30 | K9: =getRiskValue("A:A",H9,J9,L9,"Multi") -> -30 | L9: =IF(ISBLANK(sel_Treatments\Post_Insecticide),"",sel_Treatments\Post_Insecticide) -> Lorsban (Pilot 15 G)
A10: Field\Irrigation | B10: 3 | C10: Non-Irrigated | D10: 0
A11: Field_Soil\Drainage_Class | B11: 1 | C11: Poorly | D11: 20 | H11: Total | I11: =SUMIF(I3:I9,">0") -> 130 | J11: =SUMIF(J3:J9,">0") -> 25 | K11: =MAX(SCR_MinRiskIndex,SUM(K3:K9)) -> 55
A12: Field_Soil\Drainage_Class | B12: 2 | C12: Somewhat Poorly | D12: 15
A13: Field_Soil\Drainage_Class | B13: 3 | C13: Moderately Well | D13: 10 | H13: High Risk Index | I13: 70
A14: Field_Soil\Drainage_Class | B14: 4 | C14: Well | D14: 5 | H14: Moderate Risk Index | I14: 45
A15: Field_Soil\Texture | B15: 1 | C15: Loam | D15: 15
A16: Field_Soil\Texture | B16: 2 | C16: Sandy Loam | D16: 10
A17: Field_Soil\Texture | B17: 3 | C17: Loamy Sand | D17: 5
A18: Pest_History\Southern_Corn_Rootworm | B18: 1 | C18: High | D18: 15
A19: Pest_History\Southern_Corn_Rootworm | B19: 2 | C19: Moderate | D19: 10
A20: Pest_History\Southern_Corn_Rootworm | B20: 3 | C20: Low | D20: 5
A21: Pest_History\Southern_Corn_Rootworm | B21: 4 | C21: No History | D21: 0
A22: Treatments\Post_Insecticide | B22: 1 | C22: None|Brigade|Comite|Danitol|Portal | D22: 0
A23: Treatments\Post_Insecticide | B23: 2 | C23: Acephate|Lannate|Non-pyrethroids|Pyrethroids | D23: -10
A24: Treatments\Post_Insecticide | B24: 3 | C24: Lorsban (Pilot 15 G) | D24: -30

Sheet SM (hidden)
A1: Spider Mites
A2: Category | B2: Risk Level | C2: Risk Level Description | D2: Points | H2: Category | I2: Max | J2: Min | K2: Risk | L2: Selection
A3: Field\Borders_Early_Season | B3: 1 | C3: Weeds/Brush | D3: 15 | H3: Treatments\Post_Insecticide | I3: 40 | J3: -30 | K3: =getRiskValue("A:A",H3,J3,L3,"Multi") -> 40 | L3: =IF(ISBLANK(sel_Treatments\Post_Insecticide),"",sel_Treatments\Post_Insecticide) -> Lorsban (Pilot 15 G)
A4: Field\Borders_Early_Season | B4: 2 | C4: Clean | D4: 5 | H4: Leaf_Spot_Management\Spray_Schedule | I4: 30 | J4: 10 | K4: =getRiskValue("A:A",H4,J4,L4,"Single") -> 30 | L4: =IF(ISBLANK(sel_Leaf_Spot_Management\Spray_Schedule),"",sel_Leaf_Spot_Management\Spray_Schedule) -> Calendar
A5: Field\Borders_Late_Season | B5: 1 | C5: Mowed | D5: 20 | H5: Field\Borders_Late_Season | I5: 20 | J5: 5 | K5: 5 | L5: =IF(ISBLANK(sel_Field\Borders_Late_Season),"",sel_Field\Borders_Late_Season) -> Not Mowed
A6: Field\Borders_Late_Season | B6: 2 | C6: Not Mowed | D6: 5 | H6: Field\Irrigation | I6: 20 | J6: 5 | K6: 5 | L6: =IF(ISBLANK(sel_Field\Irrigation),"",sel_Field\Irrigation) -> Irrigated
A7: Field\Irrigation | B7: 1 | C7: Non-Irrigated | D7: 20 | H7: Pest\Host_Crops | I7: 20 | J7: 5 | K7: 15 | L7: =IF(ISBLANK(sel_Pest\Host_Crops),"",sel_Pest\Host_Crops) -> Field Corn
A8: Field\Irrigation | B8: 2 | C8: Periodic Irrigation | D8: 13 | H8: Field\Borders_Early_Season | I8: 15 | J8: 5 | K8: 5 | L8: =IF(ISBLANK(sel_Field\Borders_Early_Season),"",sel_Field\Borders_Early_Season) -> Clean
A9: Field\Irrigation | B9: 3 | C9: Irrigated | D9: 5 | H9: Leaf_Spot_Management\Chlorothalonil_Applications | I9: 10 | J9: 5 | K9: 10 | L9: =IF(ISBLANK(sel_Leaf_Spot_Management\Chlorothalonil_Applications),"",sel_Leaf_Spot_Management\Chlorothalonil_Applications) -> 3 or more
A10: Leaf_Spot_Management\Chlorothalonil_Applications | B10: 1 | C10: 3 or more | D10: 10
A11: Leaf_Spot_Management\Chlorothalonil_Applications | B11: 2 | C11: Less then 3 | D11: 5 | H11: Total | I11: =SUMIF(I3:I9,">0") -> 155 | J11: =SUMIF(J3:J9,">0") -> 35 | K11: =MAX(SM_MinRiskIndex,SUM(K3:K9)) -> 110
A12: Leaf_Spot_Management\Spray_Schedule | B12: 1 | C12: Calendar | D12: 30
A13: Leaf_Spot_Management\Spray_Schedule | B13: 2 | C13: Calendar, skipping when dry | D13: 20 | H13: High Risk Index | I13: 110
A14: Leaf_Spot_Management\Spray_Schedule | B14: 3 | C14: Advisory throughout season | D14: 10 | H14: Moderate Risk Index | I14: 80
A15: Pest\Host_Crops | B15: 1 | C15: Sweet Corn | D15: 20
A16: Pest\Host_Crops | B16: 2 | C16: Field Corn | D16: 15
A17: Pest\Host_Crops | B17: 3 | C17: Clary Sage|Cotton|Melons|Peanut|Small Grains|Sorghum|Soybean|Tobacco|Vegetables | D17: 10
A18: Pest\Host_Crops | B18: 4 | C18: Fallow|Forage Grasses|Other|Sweetpotato | D18: 5
A19: Treatments\Post_Insecticide | B19: 1 | C19: Lorsban (Pilot 15 G) | D19: 40
A20: Treatments\Post_Insecticide | B20: 2 | C20: Lannate | D20: 20
A21: Treatments\Post_Insecticide | B21: 3 | C21: Acephate|Pyrethroids | D21: 15
A22: Treatments\Post_Insecticide | B22: 4 | C22: Non-pyrethroids | D22: 10
A23: Treatments\Post_Insecticide | B23: 5 | C23: None|Brigade | D23: 5
A24: Treatments\Post_Insecticide | B24: 6 | C24: Comite|Danitol | D24: -15
A25: Treatments\Post_Insecticide | B25: 7 | C25: Portal | D25: -30

Sheet THRP (hidden)
A1: Thrips
A2: Category | B2: Risk Level | C2: Risk Level Description | D2: Points | H2: Category | I2: Max | J2: Min | K2: Risk | L2: Selection
A3: Crop_Practices\Plant_Density | B3: 1 | C3: 1 to 2 plants/row ft. | D3: 20 | H3: Crop_Practices\Planting_Date | I3: 30 | J3: 10 | K3: =getRiskValue("A:A",H3,J3,L3,"Date") -> 30 | L3: =IF(ISBLANK(sel_Crop_Practices\Planting_Date),"",sel_Crop_Practices\Planting_Date) -> 2021-05-01
A4: Crop_Practices\Plant_Density | B4: 2 | C4: 3 to 4 plants/row ft. | D4: 10 | H4: Crop_Practices\Plant_Density | I4: 20 | J4: 5 | K4: =getRiskValue("A:A",H4,J4,L4,"Single") -> 5 | L4: =IF(ISBLANK(sel_Crop_Practices\Plant_Density),"",sel_Crop_Practices\Plant_Density) -> 5 or more plants/row ft.
A5: Crop_Practices\Plant_Density | B5: 3 | C5: 5 or more plants/row ft. | D5: 5 | H5: Field\Seedbed | I5: 15 | J5: 5 | K5: =getRiskValue("A:A",H5,J5,L5,"Single") -> 15 | L5: =IF(ISBLANK(sel_Field\Seedbed),"",sel_Field\Seedbed) -> Conventional
A6: Crop_Practices\Planting_Date | B6: 1 | C6: 001 to 125 | D6: 30 | H6: Treatments\Post_Insecticide | I6: 0 | J6: -15 | K6: =getRiskValue("A:A",H6,J6,L6,"Multi") -> 0 | L6: =IF(ISBLANK(sel_Treatments\Post_Insecticide),"",sel_Treatments\Post_Insecticide) -> Lorsban (Pilot 15 G)
A7: Crop_Practices\Planting_Date | B7: 2 | C7: 126 to 135 | D7: 15 | H7: Treatments\Pre_Emergence | I7: 0 | J7: -25 | K7: =getRiskValue("A:A",H7,J7,L7,"Multi") -> -25 | L7: =IF(ISBLANK(sel_Treatments\Pre_Emergence),"",sel_Treatments\Pre_Emergence) -> Thimet 20G
A8: Crop_Practices\Planting_Date | B8: 3 | C8: 136 to 365 | D8: 10
A9: Field\Seedbed | B9: 1 | C9: Conventional | D9: 15 | H9: Total | I9: =SUMIF(I3:I7,">0") -> 65 | J9: =SUMIF(J3:J7,">0") -> 20 | K9: =MAX(THRP_MinRiskIndex,SUM(K3:K7)) -> 25
A10: Field\Seedbed | B10: 2 | C10: Fertilized Rye/No till|Fertilized Rye/Strip till|No cover crop/No till|No cover crop/Strip till|Rye/No till|Rye/Strip till|Wheat/No till|Wheat/Strip till | D10: 5
A11: Treatments\Post_Insecticide | B11: 1 | C11: None|Brigade|Comite|Danitol|Lannate|Lorsban (Pilot 15 G)|Non-pyrethroids|Portal|Pyrethroids | D11: 0 | H11: High Risk Index | I11: 50
A12: Treatments\Post_Insecticide | B12: 2 | C12: Acephate | D12: -15 | H12: Moderate Risk Index | I12: 35
A13: Treatments\Pre_Emergence | B13: 1 | C13: None|Proline|Propulse | D13: 0
A14: Treatments\Pre_Emergence | B14: 2 | C14: Acephate|Admire Pro|AgLogic|Imidacloprid (Generic)|Phorate 20G|Thimet 20G|Velum Total | D14: -25

Sheet LS (hidden)
A1: Early/Late Leaf Spot
A2: Category | B2: Risk Level | C2: Risk Level Description | D2: Points | H2: Category | I2: Max | J2: Min | K2: Risk | L2: Selection
A3: Crop_Practices\Cultivar | B3: 1 | C3: Champs | D3: 30 | H3: Leaf_Spot_Management\Fungicide_Resistance | I3: 100 | J3: 5 | K3: =getRiskValue("A:A",H3,J3,L3,"Single") -> 5 | L3: =IF(ISBLANK(sel_Leaf_Spot_Management\Fungicide_Resistance),"",sel_Leaf_Spot_Management\Fungicide_Resistance) -> None Identified
A4: Crop_Practices\Cultivar | B4: 2 | C4: Bailey|Bailey II|Emery|Sullivan|Wynne | D4: 10 | H4: Pest_History\Leaf_Spot | I4: 60 | J4: 5 | K4: =getRiskValue("A:A",H4,J4,L4,"Single") -> 20 | L4: =IF(ISBLANK(sel_Pest_History\Leaf_Spot),"",sel_Pest_History\Leaf_Spot) -> Present but not a problem with a good fungicide program
A5: Crop_Practices\Planting_Date | B5: 1 | C5: 141 to 365 | D5: 10 | H5: Crop_Practices\Cultivar | I5: 30 | J5: 10 | K5: =getRiskValue("A:A",H5,J5,L5,"Single") -> 10 | L5: =IF(ISBLANK(sel_Crop_Practices\Cultivar),"",sel_Crop_Practices\Cultivar) -> Bailey II
A6: Crop_Practices\Planting_Date | B6: 2 | C6: 001 to 140 | D6: 5 | H6: Field_Crop_History\1_Year_Ago | I6: 30 | J6: 3 | K6: =getRiskValue("A:A",H6,J6,L6,"Single") -> 3 | L6: =IF(ISBLANK(sel_Field_Crop_History\1_Year_Ago),"",sel_Field_Crop_History\1_Year_Ago) -> Cotton
A7: Field\Irrigation | B7: 1 | C7: Irrigated | D7: 15 | H7: Field\Irrigation | I7: 15 | J7: 5 | K7: =getRiskValue("A:A",H7,J7,L7,"Single") -> 15 | L7: =IF(ISBLANK(sel_Field\Irrigation),"",sel_Field\Irrigation) -> Irrigated
A8: Field\Irrigation | B8: 2 | C8: Periodic Irrigation | D8: 10 | H8: Field_Crop_History\2_Years_Ago | I8: 15 | J8: 2 | K8: =getRiskValue("A:A",H8,J8,L8,"Single") -> 2 | L8: =IF(ISBLANK(sel_Field_Crop_History\2_Years_Ago),"",sel_Field_Crop_History\2_Years_Ago) -> Field Corn
A9: Field\Irrigation | B9: 3 | C9: Non-Irrigated | D9: 5 | H9: Crop_Practices\Planting_Date | I9: 10 | J9: 5 | K9: =getRiskValue("A:A",H9,J9,L9,"Date") -> 5 | L9: =IF(ISBLANK(sel_Crop_Practices\Planting_Date),"",sel_Crop_Practices\Planting_Date) -> 2021-05-01
A10: Field\Seedbed | B10: 1 | C10: Conventional | D10: 10 | H10: Field\Seedbed | I10: 10 | J10: 5 | K10: =getRiskValue("A:A",H10,J10,L10,"Single") -> 10 | L10: =IF(ISBLANK(sel_Field\Seedbed),"",sel_Field\Seedbed) -> Conventional
A11: Field\Seedbed | B11: 2 | C11: Fertilized Rye/No till|Fertilized Rye/Strip till|No cover crop/No till|No cover crop/Strip till|Rye/No till|Rye/Strip till|Wheat/No till|Wheat/Strip till | D11: 5 | H11: Field_Crop_History\3_Years_Ago | I11: 5 | J11: 2 | K11: =getRiskValue("A:A",H11,J11,L11,"Single") -> 2 | L11: =IF(ISBLANK(sel_Field_Crop_History\3_Years_Ago),"",sel_Field_Crop_History\3_Years_Ago) -> Cotton
A12: Field_Crop_History\1_Year_Ago | B12: 1 | C12: Peanut | D12: 30 | H12: Field_Crop_History\4_Years_ago | I12: 3 | J12: 1 | K12: =getRiskValue("A:A",H12,J12,L12,"Single") -> 3 | L12: =IF(ISBLANK(sel_Field_Crop_History\4_Years_ago),"",sel_Field_Crop_History\4_Years_ago) -> Peanut
A13: Field_Crop_History\1_Year_Ago | B13: 2 | C13: Clary Sage|Cotton|Fallow|Field Corn|Forage Grasses|Melons|Other|Small Grains|Sorghum|Soybean|Sweet Corn|Sweetpotato|Tobacco|Vegetables | D13: 3
A14: Field_Crop_History\2_Years_Ago | B14: 1 | C14: Peanut | D14: 15 | H14: Total | I14: =SUMIF(I3:I12,">0") -> 278 | J14: =SUMIF(J3:J12,">0") -> 43 | K14: =MAX(LS_MinRiskIndex,SUM(K3:K12)) -> 75
A15: Field_Crop_History\2_Years_Ago | B15: 2 | C15: Clary Sage|Cotton|Fallow|Field Corn|Forage Grasses|Melons|Other|Small Grains|Sorghum|Soybean|Sweet Corn|Sweetpotato|Tobacco|Vegetables | D15: 2
A16: Field_Crop_History\3_Years_Ago | B16: 1 | C16: Peanut | D16: 5 | H16: High Risk Index | I16: 103
A17: Field_Crop_History\3_Years_Ago | B17: 2 | C17: Clary Sage|Cotton|Fallow|Field Corn|Forage Grasses|Melons|Other|Small Grains|Sorghum|Soybean|Sweet Corn|Sweetpotato|Tobacco|Vegetables | D17: 2 | H17: Moderate Risk Index | I17: 73
A18: Field_Crop_History\4_Years_ago | B18: 1 | C18: Peanut | D18: 3
A19: Field_Crop_History\4_Years_ago | B19: 2 | C19: Clary Sage|Cotton|Fallow|Field Corn|Forage Grasses|Melons|Other|Small Grains|Sorghum|Soybean|Sweet Corn|Sweetpotato|Tobacco|Vegetables | D19: 1
A20: Leaf_Spot_Management\Fungicide_Resistance | B20: 1 | C20: Group 3, 7, 11, and M | D20: 100
A21: Leaf_Spot_Management\Fungicide_Resistance | B21: 2 | C21: Group 3, 7, and M|Group 3, 11, and M|Group 7, 11, and M | D21: 90
A22: Leaf_Spot_Management\Fungicide_Resistance | B22: 3 | C22: Group 3 and M|Group 7 and M|Group 11 and M | D22: 80
A23: Leaf_Spot_Management\Fungicide_Resistance | B23: 4 | C23: Group M (Multi-Site)|Group 3, 7, and 11 | D23: 60
A24: Leaf_Spot_Management\Fungicide_Resistance | B24: 5 | C24: Group 3 and 7|Group 3 and 11|Group 7 and 11 | D24: 30
A25: Leaf_Spot_Management\Fungicide_Resistance | B25: 6 | C25: Group 3 (DMI)|Group 7 (SDHI)|Group 11 (QoI) | D25: 15
A26: Leaf_Spot_Management\Fungicide_Resistance | B26: 7 | C26: None Identified | D26: 5
A27: Pest_History\Leaf_Spot | B27: 1 | C27: A problem even with good fungicide program | D27: 60
A28: Pest_History\Leaf_Spot | B28: 2 | C28: Present but not a problem with a good fungicide program | D28: 20
A29: Pest_History\Leaf_Spot | B29: 3 | C29: No history | D29: 5

Sheet TSWV (hidden)
A1: Tomato Spotted Wilt Virus
A2: Category | B2: Risk Level | C2: Risk Level Description | D2: Points | H2: Category | I2: Max | J2: Min | K2: Risk | L2: Selection
A3: Crop_Practices\Cultivar | B3: 1 | C3: Champs | D3: 30 | H3: Crop_Practices\Cultivar | I3: 30 | J3: 20 | K3: =getRiskValue("A:A",H3,J3,L3,"Single") -> 20 | L3: =IF(ISBLANK(sel_Crop_Practices\Cultivar),"",sel_Crop_Practices\Cultivar) -> Bailey II
A4: Crop_Practices\Cultivar | B4: 2 | C4: Bailey|Bailey II|Emery|Sullivan|Wynne | D4: 20 | H4: Crop_Practices\Plant_Density | I4: 25 | J4: 5 | K4: =getRiskValue("A:A",H4,J4,L4,"Single") -> 5 | L4: =IF(ISBLANK(sel_Crop_Practices\Plant_Density),"",sel_Crop_Practices\Plant_Density) -> 5 or more plants/row ft.
A5: Crop_Practices\Plant_Density | B5: 1 | C5: 1 to 2 plants/row ft. | D5: 25 | H5: Treatments\Pre_Emergence | I5: 25 | J5: 5 | K5: =getRiskValue("A:A",H5,J5,L5,"Multi") -> 5 | L5: =IF(ISBLANK(sel_Treatments\Pre_Emergence),"",sel_Treatments\Pre_Emergence) -> Thimet 20G
A6: Crop_Practices\Plant_Density | B6: 2 | C6: 3 to 4 plants/row ft. | D6: 15 | H6: Crop_Practices\Planting_Date | I6: 20 | J6: 10 | K6: =getRiskValue("A:A",H6,J6,L6,"Date") -> 20 | L6: =IF(ISBLANK(sel_Crop_Practices\Planting_Date),"",sel_Crop_Practices\Planting_Date) -> 2021-05-01
A7: Crop_Practices\Plant_Density | B7: 3 | C7: 5 or more plants/row ft. | D7: 5 | H7: Field\Seedbed | I7: 10 | J7: 5 | K7: =getRiskValue("A:A",H7,J7,L7,"Single") -> 10 | L7: =IF(ISBLANK(sel_Field\Seedbed),"",sel_Field\Seedbed) -> Conventional
A8: Crop_Practices\Planting_Date | B8: 1 | C8: 001 to 125 | D8: 20 | H8: Treatments\Post_Insecticide | I8: 0 | J8: -5 | K8: =getRiskValue("A:A",H8,J8,L8,"Multi") -> 0 | L8: =IF(ISBLANK(sel_Treatments\Post_Insecticide),"",sel_Treatments\Post_Insecticide) -> Lorsban (Pilot 15 G)
A9: Crop_Practices\Planting_Date | B9: 2 | C9: 136 to 365 | D9: 15
A10: Crop_Practices\Planting_Date | B10: 3 | C10: 126 to 135 | D10: 10 | H10: Total | I10: =SUMIF(I3:I8,">0") -> 110 | J10: =SUMIF(J3:J8,">0") -> 45 | K10: =MAX(TSWV_MinRiskIndex,SUM(K3:K8)) -> 60
A11: Field\Seedbed | B11: 1 | C11: Conventional | D11: 10
A12: Field\Seedbed | B12: 2 | C12: Fertilized Rye/No till|Fertilized Rye/Strip till|No cover crop/No till|No cover crop/Strip till|Rye/No till|Rye/Strip till|Wheat/No till|Wheat/Strip till | D12: 5 | H12: High Risk Index | I12: 90
A13: Treatments\Post_Insecticide | B13: 1 | C13: None|Brigade|Comite|Danitol|Lannate|Lorsban (Pilot 15 G)|Non-pyrethroids|Portal|Pyrethroids | D13: 0 | H13: Moderate Risk Index | I13: 65
A14: Treatments\Post_Insecticide | B14: 2 | C14: Acephate | D14: -5
A15: Treatments\Pre_Emergence | B15: 1 | C15: None|Proline|Propulse | D15: 25
A16: Treatments\Pre_Emergence | B16: 2 | C16: Acephate|Admire Pro|AgLogic|Imidacloprid (Generic)|Velum Total | D16: 10
A17: Treatments\Pre_Emergence | B17: 3 | C17: Phorate 20G|Thimet 20G | D17: 5

Sheet CBR (hidden)
A1: Cylindrocladium Black Rot
A2: Category | B2: Risk Level | C2: Risk Level Description | D2: Points | H2: Category | I2: Max | J2: Min | K2: Risk | L2: Selection
A3: Crop_Practices\Cultivar | B3: 1 | C3: Champs | D3: 30 | H3: Crop_Practices\Cultivar | I3: 30 | J3: 20 | K3: =getRiskValue("A:A",H3,J3,L3,"Single") -> 20 | L3: =IF(ISBLANK(sel_Crop_Practices\Cultivar),"",sel_Crop_Practices\Cultivar) -> Bailey II
A4: Crop_Practices\Cultivar | B4: 2 | C4: Bailey|Bailey II|Emery|Sullivan|Wynne | D4: 20 | H4: Pest_History\Cylindrocladium_Black_Rot | I4: 25 | J4: 5 | K4: =getRiskValue("A:A",H4,J4,L4,"Single") -> 10 | L4: =IF(ISBLANK(sel_Pest_History\Cylindrocladium_Black_Rot),"",sel_Pest_History\Cylindrocladium_Black_Rot) -> Low (incidence < 5%)
A5: Crop_Practices\Planting_Date | B5: 1 | C5: 001 to 125 | D5: 15 | H5: Field_Crop_History\1_Year_Ago | I5: 24 | J5: 2 | K5: =getRiskValue("A:A",H5,J5,L5,"Single") -> 2 | L5: =IF(ISBLANK(sel_Field_Crop_History\1_Year_Ago),"",sel_Field_Crop_History\1_Year_Ago) -> Cotton
A6: Crop_Practices\Planting_Date | B6: 2 | C6: 141 to 365 | D6: 10 | H6: Field_Crop_History\2_Years_Ago | I6: 16 | J6: 2 | K6: =getRiskValue("A:A",H6,J6,L6,"Single") -> 2 | L6: =IF(ISBLANK(sel_Field_Crop_History\2_Years_Ago),"",sel_Field_Crop_History\2_Years_Ago) -> Field Corn
A7: Crop_Practices\Planting_Date | B7: 3 | C7: 126 to 140 | D7: 5 | H7: Crop_Practices\Planting_Date | I7: 15 | J7: 5 | K7: =getRiskValue("A:A",H7,J7,L7,"Date") -> 15 | L7: =IF(ISBLANK(sel_Crop_Practices\Planting_Date),"",sel_Crop_Practices\Planting_Date) -> 2021-05-01
A8: Field\Irrigation | B8: 1 | C8: Irrigated | D8: 10 | H8: Field\Irrigation | I8: 10 | J8: 0 | K8: =getRiskValue("A:A",H8,J8,L8,"Single") -> 10 | L8: =IF(ISBLANK(sel_Field\Irrigation),"",sel_Field\Irrigation) -> Irrigated
A9: Field\Irrigation | B9: 2 | C9: Periodic Irrigation | D9: 5 | H9: Field_Soil\Drainage_Class | I9: 10 | J9: 0 | K9: =getRiskValue("A:A",H9,J9,L9,"Single") -> 0 | L9: =IF(ISBLANK(sel_Field_Soil\Drainage_Class),"",sel_Field_Soil\Drainage_Class) -> Well
A10: Field\Irrigation | B10: 3 | C10: Non-Irrigated | D10: 0 | H10: Field_Soil\pH | I10: 10 | J10: 5 | K10: =getRiskValue("A:A",H10,J10,L10,"pH") -> 5 | L10: =IF(ISBLANK(sel_Field_Soil\pH),"",sel_Field_Soil\pH) -> 6.2
A11: Field\Seedbed | B11: 1 | C11: Fertilized Rye/No till|Fertilized Rye/Strip till|No cover crop/No till|No cover crop/Strip till|Rye/No till|Rye/Strip till|Wheat/No till|Wheat/Strip till | D11: 5 | H11: Field_Crop_History\3_Years_Ago | I11: 8 | J11: 2 | K11: =getRiskValue("A:A",H11,J11,L11,"Single") -> 2 | L11: =IF(ISBLANK(sel_Field_Crop_History\3_Years_Ago),"",sel_Field_Crop_History\3_Years_Ago) -> Cotton
A12: Field\Seedbed | B12: 2 | C12: Conventional | D12: 0 | H12: Field\Seedbed | I12: 5 | J12: 0 | K12: =getRiskValue("A:A",H12,J12,L12,"Single") -> 0 | L12: =IF(ISBLANK(sel_Field\Seedbed),"",sel_Field\Seedbed) -> Conventional
A13: Field_Crop_History\1_Year_Ago | B13: 1 | C13: Peanut|Soybean|Tobacco | D13: 24 | H13: Field_Crop_History\4_Years_ago | I13: 4 | J13: 2 | K13: =getRiskValue("A:A",H13,J13,L13,"Single") -> 4 | L13: =IF(ISBLANK(sel_Field_Crop_History\4_Years_ago),"",sel_Field_Crop_History\4_Years_ago) -> Peanut
A14: Field_Crop_History\1_Year_Ago | B14: 2 | C14: Clary Sage|Cotton|Fallow|Field Corn|Forage Grasses|Melons|Other|Small Grains|Sorghum|Sweet Corn|Sweetpotato|Vegetables | D14: 2 | H14: Treatments\Fumigants | I14: 0 | J14: -50 | K14: =getRiskValue("A:A",H14,J14,L14,"Single") -> 0 | L14: =IF(ISBLANK(sel_Treatments\Fumigants),"",sel_Treatments\Fumigants) -> None
A15: Field_Crop_History\2_Years_Ago | B15: 1 | C15: Peanut|Soybean|Tobacco | D15: 16 | H15: Treatments\Pre_Emergence | I15: 0 | J15: -10 | K15: =getRiskValue("A:A",H15,J15,L15,"Multi") -> 0 | L15: =IF(ISBLANK(sel_Treatments\Pre_Emergence),"",sel_Treatments\Pre_Emergence) -> Thimet 20G
A16: Field_Crop_History\2_Years_Ago | B16: 2 | C16: Clary Sage|Cotton|Fallow|Field Corn|Forage Grasses|Melons|Other|Small Grains|Sorghum|Sweet Corn|Sweetpotato|Vegetables | D16: 2
A17: Field_Crop_History\3_Years_Ago | B17: 1 | C17: Peanut|Soybean|Tobacco | D17: 8 | H17: Total | I17: =SUMIF(I3:I15,">0") -> 157 | J17: =SUMIF(J3:J15,">0") -> 43 | K17: =MAX(CBR_MinRiskIndex,SUM(K3:K15)) -> 70
A18: Field_Crop_History\3_Years_Ago | B18: 2 | C18: Clary Sage|Cotton|Fallow|Field Corn|Forage Grasses|Melons|Other|Small Grains|Sorghum|Sweet Corn|Sweetpotato|Vegetables | D18: 2
A19: Field_Crop_History\4_Years_ago | B19: 1 | C19: Peanut|Soybean|Tobacco | D19: 4 | H19: High Risk Index | I19: 110
A20: Field_Crop_History\4_Years_ago | B20: 2 | C20: Clary Sage|Cotton|Fallow|Field Corn|Forage Grasses|Melons|Other|Small Grains|Sorghum|Sweet Corn|Sweetpotato|Vegetables | D20: 2 | H20: Moderate Risk Index | I20: 80
A21: Field_Soil\Drainage_Class | B21: 1 | C21: Somewhat Poorly|Poorly | D21: 10
A22: Field_Soil\Drainage_Class | B22: 2 | C22: Moderately Well | D22: 5
A23: Field_Soil\Drainage_Class | B23: 3 | C23: Well | D23: 0
A24: Field_Soil\pH | B24: 1 | C24: 5.7 or lower | D24: 10
A25: Field_Soil\pH | B25: 2 | C25: 5.8 or higher | D25: 5
A26: Pest_History\Cylindrocladium_Black_Rot | B26: 1 | C26: High (incidence > 10%) | D26: 25
A27: Pest_History\Cylindrocladium_Black_Rot | B27: 2 | C27: Moderate (incidence 5-10%) | D27: 15
A28: Pest_History\Cylindrocladium_Black_Rot | B28: 3 | C28: Low (incidence < 5%) | D28: 10
A29: Pest_History\Cylindrocladium_Black_Rot | B29: 4 | C29: No History | D29: 5
A30: Treatments\Fumigants | B30: 1 | C30: None|Telone II | D30: 0
A31: Treatments\Fumigants | B31: 2 | C31: Metam Sodium | D31: -50
A32: Treatments\Pre_Emergence | B32: 1 | C32: Acephate|Admire Pro|AgLogic|Imidacloprid (Generic)|None|Phorate 20G|Thimet 20G | D32: 0
A33: Treatments\Pre_Emergence | B33: 2 | C33: Velum Total | D33: -5
A34: Treatments\Pre_Emergence | B34: 3 | C34: Proline|Propulse | D34: -10

Sheet SCL (hidden)
A1: Sclerotinia
A2: Category | B2: Risk Level | C2: Risk Level Description | D2: Points | H2: Category | I2: Max | J2: Min | K2: Risk | L2: Selection
A3: Crop_Practices\Cultivar | B3: 1 | C3: Champs | D3: 85 | H3: Pest_History\Sclerotinia | I3: 145 | J3: 0 | K3: =getRiskValue("A:A",H3,J3,L3,"Single") -> 0 | L3: =IF(ISBLANK(sel_Pest_History\Sclerotinia),"",sel_Pest_History\Sclerotinia) -> No history
A4: Crop_Practices\Cultivar | B4: 2 | C4: Wynne | D4: 70 | H4: Crop_Practices\Cultivar | I4: 85 | J4: 55 | K4: =getRiskValue("A:A",H4,J4,L4,"Single") -> 55 | L4: =IF(ISBLANK(sel_Crop_Practices\Cultivar),"",sel_Crop_Practices\Cultivar) -> Bailey II
A5: Crop_Practices\Cultivar | B5: 3 | C5: Bailey|Bailey II|Emery|Sullivan | D5: 55 | H5: Field_Crop_History\1_Year_Ago | I5: 24 | J5: 16 | K5: =getRiskValue("A:A",H5,J5,L5,"Single") -> 16 | L5: =IF(ISBLANK(sel_Field_Crop_History\1_Year_Ago),"",sel_Field_Crop_History\1_Year_Ago) -> Cotton
A6: Crop_Practices\Plant_Density | B6: 1 | C6: 5 or more plants/row ft. | D6: 10 | H6: Leaf_Spot_Management\Chlorothalonil_Applications | I6: 20 | J6: 0 | K6: =getRiskValue("A:A",H6,J6,L6,"Single") -> 20 | L6: =IF(ISBLANK(sel_Leaf_Spot_Management\Chlorothalonil_Applications),"",sel_Leaf_Spot_Management\Chlorothalonil_Applications) -> 3 or more
A7: Crop_Practices\Plant_Density | B7: 2 | C7: 3 to 4 plants/row ft. | D7: 5 | H7: Field_Crop_History\2_Years_Ago | I7: 16 | J7: 8 | K7: =getRiskValue("A:A",H7,J7,L7,"Single") -> 8 | L7: =IF(ISBLANK(sel_Field_Crop_History\2_Years_Ago),"",sel_Field_Crop_History\2_Years_Ago) -> Field Corn
A8: Crop_Practices\Plant_Density | B8: 3 | C8: 1 to 2 plants/row ft. | D8: 0 | H8: Crop_Practices\Plant_Density | I8: 10 | J8: 0 | K8: =getRiskValue("A:A",H8,J8,L8,"Single") -> 10 | L8: =IF(ISBLANK(sel_Crop_Practices\Plant_Density),"",sel_Crop_Practices\Plant_Density) -> 5 or more plants/row ft.
A9: Crop_Practices\Planting_Date | B9: 1 | C9: 141 to 365 | D9: 10 | H9: Crop_Practices\Planting_Date | I9: 10 | J9: 5 | K9: =getRiskValue("A:A",H9,J9,L9,"Date") -> 5 | L9: =IF(ISBLANK(sel_Crop_Practices\Planting_Date),"",sel_Crop_Practices\Planting_Date) -> 2021-05-01
A10: Crop_Practices\Planting_Date | B10: 2 | C10: 001 to 140 | D10: 5 | H10: Field\Irrigation | I10: 10 | J10: 5 | K10: =getRiskValue("A:A",H10,J10,L10,"Single") -> 10 | L10: =IF(ISBLANK(sel_Field\Irrigation),"",sel_Field\Irrigation) -> Irrigated
A11: Crop_Practices\Row_Pattern | B11: 1 | C11: Twin (7 to 10 inches) | D11: 5 | H11: Field_Soil\pH | I11: 10 | J11: 0 | K11: =getRiskValue("A:A",H11,J11,L11,"pH") -> 5 | L11: =IF(ISBLANK(sel_Field_Soil\pH),"",sel_Field_Soil\pH) -> 6.2
A12: Crop_Practices\Row_Pattern | B12: 2 | C12: Single (32 to 38 inches) | D12: 0 | H12: Leaf_Spot_Management\Spray_Schedule | I12: 10 | J12: 5 | K12: =getRiskValue("A:A",H12,J12,L12,"Single") -> 10 | L12: =IF(ISBLANK(sel_Leaf_Spot_Management\Spray_Schedule),"",sel_Leaf_Spot_Management\Spray_Schedule) -> Calendar
A13: Field\Irrigation | B13: 1 | C13: Irrigated | D13: 10 | H13: Field_Crop_History\3_Years_Ago | I13: 8 | J13: 2 | K13: =getRiskValue("A:A",H13,J13,L13,"Single") -> 2 | L13: =IF(ISBLANK(sel_Field_Crop_History\3_Years_Ago),"",sel_Field_Crop_History\3_Years_Ago) -> Cotton
A14: Field\Irrigation | B14: 2 | C14: Periodic Irrigation | D14: 8 | H14: Crop_Practices\Row_Pattern | I14: 5 | J14: 0 | K14: =getRiskValue("A:A",H14,J14,L14,"Single") -> 0 | L14: =IF(ISBLANK(sel_Crop_Practices\Row_Pattern),"",sel_Crop_Practices\Row_Pattern) -> Single (32 to 38 inches)
A15: Field\Irrigation | B15: 3 | C15: Non-Irrigated | D15: 5 | H15: Field_Crop_History\4_Years_ago | I15: 4 | J15: 2 | K15: =getRiskValue("A:A",H15,J15,L15,"Single") -> 4 | L15: =IF(ISBLANK(sel_Field_Crop_History\4_Years_ago),"",sel_Field_Crop_History\4_Years_ago) -> Peanut
A16: Field_Crop_History\1_Year_Ago | B16: 1 | C16: Clary Sage|Melons|Peanut|Soybean|Vegetables | D16: 24
A17: Field_Crop_History\1_Year_Ago | B17: 2 | C17: Tobacco | D17: 20 | H17: Total | I17: =SUMIF(I3:I15,">0") -> 357 | J17: =SUMIF(J3:J15,">0") -> 98 | K17: =MAX(SCL_MinRiskIndex,SUM(K3:K15)) -> 145
A18: Field_Crop_History\1_Year_Ago | B18: 3 | C18: Cotton|Fallow|Field Corn|Forage Grasses|Other|Small Grains|Sorghum|Sweet Corn|Sweetpotato | D18: 16
A19: Field_Crop_History\2_Years_Ago | B19: 1 | C19: Clary Sage|Melons|Peanut|Soybean|Vegetables | D19: 16 | H19: High Risk Index | I19: 245
A20: Field_Crop_History\2_Years_Ago | B20: 2 | C20: Tobacco | D20: 12 | H20: Moderate Risk Index | I20: 215
A21: Field_Crop_History\2_Years_Ago | B21: 3 | C21: Cotton|Fallow|Field Corn|Forage Grasses|Other|Small Grains|Sorghum|Sweet Corn|Sweetpotato | D21: 8
A22: Field_Crop_History\3_Years_Ago | B22: 1 | C22: Clary Sage|Melons|Peanut|Soybean|Vegetables | D22: 8
A23: Field_Crop_History\3_Years_Ago | B23: 2 | C23: Tobacco | D23: 4
A24: Field_Crop_History\3_Years_Ago | B24: 3 | C24: Cotton|Fallow|Field Corn|Forage Grasses|Other|Small Grains|Sorghum|Sweet Corn|Sweetpotato | D24: 2
A25: Field_Crop_History\4_Years_ago | B25: 1 | C25: Clary Sage|Melons|Peanut|Soybean|Vegetables | D25: 4
A26: Field_Crop_History\4_Years_ago | B26: 2 | C26: Cotton|Fallow|Field Corn|Forage Grasses|Other|Small Grains|Sorghum|Sweet Corn|Sweetpotato|Tobacco | D26: 2
A27: Field_Soil\pH | B27: 1 | C27: 6.6 or higher | D27: 10
A28: Field_Soil\pH | B28: 2 | C28: 5.8 to 6.5 | D28: 5
A29: Field_Soil\pH | B29: 3 | C29: 5.7 or lower | D29: 0
A30: Leaf_Spot_Management\Chlorothalonil_Applications | B30: 1 | C30: 3 or more | D30: 20
A31: Leaf_Spot_Management\Chlorothalonil_Applications | B31: 2 | C31: Less then 3 | D31: 0
A32: Leaf_Spot_Management\Spray_Schedule | B32: 1 | C32: Calendar|Calendar, skipping when dry | D32: 10
A33: Leaf_Spot_Management\Spray_Schedule | B33: 2 | C33: Advisory throughout season | D33: 5
A34: Pest_History\Sclerotinia | B34: 1 | C34: Present and requires 2 or more sprays per year | D34: 145
A35: Pest_History\Sclerotinia | B35: 2 | C35: Present and requires 1 spray per year | D35: 120
A36: Pest_History\Sclerotinia | B36: 3 | C36: Present and requires 0 sprays per year | D36: 95
A37: Pest_History\Sclerotinia | B37: 4 | C37: No history | D37: 0

Sheet SSR (hidden)
A1: Southern Stem Rot
A2: Category | B2: Risk Level | C2: Risk Level Description | D2: Points | H2: Category | I2: Max | J2: Min | K2: Risk | L2: Selection
A3: Crop_Practices\Cultivar | B3: 1 | C3: Champs | D3: 20 | H3: Crop_Practices\Cultivar | I3: 20 | J3: 5 | K3: =getRiskValue("A:A",H3,J3,L3,"Single") -> 5 | L3: =IF(ISBLANK(sel_Crop_Practices\Cultivar),"",sel_Crop_Practices\Cultivar) -> Bailey II
A4: Crop_Practices\Cultivar | B4: 2 | C4: Emery|Sullivan|Wynne | D4: 10 | H4: Pest_History\Southern_Stem_Rot | I4: 20 | J4: 5 | K4: =getRiskValue("A:A",H4,J4,L4,"Single") -> 5 | L4: =IF(ISBLANK(sel_Pest_History\Southern_Stem_Rot),"",sel_Pest_History\Southern_Stem_Rot) -> No history
A5: Crop_Practices\Cultivar | B5: 3 | C5: Bailey|Bailey II | D5: 5 | H5: Crop_Practices\Plant_Density | I5: 15 | J5: 5 | K5: =getRiskValue("A:A",H5,J5,L5,"Single") -> 15 | L5: =IF(ISBLANK(sel_Crop_Practices\Plant_Density),"",sel_Crop_Practices\Plant_Density) -> 5 or more plants/row ft.
A6: Crop_Practices\Plant_Density | B6: 1 | C6: 5 or more plants/row ft. | D6: 15 | H6: Field_Crop_History\1_Year_Ago | I6: 12 | J6: 1 | K6: =getRiskValue("A:A",H6,J6,L6,"Single") -> 1 | L6: =IF(ISBLANK(sel_Field_Crop_History\1_Year_Ago),"",sel_Field_Crop_History\1_Year_Ago) -> Cotton
A7: Crop_Practices\Plant_Density | B7: 2 | C7: 3 to 4 plants/row ft. | D7: 10 | H7: Crop_Practices\Row_Pattern | I7: 10 | J7: 5 | K7: =getRiskValue("A:A",H7,J7,L7,"Single") -> 10 | L7: =IF(ISBLANK(sel_Crop_Practices\Row_Pattern),"",sel_Crop_Practices\Row_Pattern) -> Single (32 to 38 inches)
A8: Crop_Practices\Plant_Density | B8: 3 | C8: 1 to 2 plants/row ft. | D8: 5 | H8: Field\Irrigation | I8: 10 | J8: 5 | K8: =getRiskValue("A:A",H8,J8,L8,"Single") -> 10 | L8: =IF(ISBLANK(sel_Field\Irrigation),"",sel_Field\Irrigation) -> Irrigated
A9: Crop_Practices\Row_Pattern | B9: 1 | C9: Single (32 to 38 inches) | D9: 10 | H9: Field\Seedbed | I9: 10 | J9: 5 | K9: =getRiskValue("A:A",H9,J9,L9,"Single") -> 10 | L9: =IF(ISBLANK(sel_Field\Seedbed),"",sel_Field\Seedbed) -> Conventional
A10: Crop_Practices\Row_Pattern | B10: 2 | C10: Twin (7 to 10 inches) | D10: 5 | H10: Field_Crop_History\2_Years_Ago | I10: 8 | J10: 1 | K10: =getRiskValue("A:A",H10,J10,L10,"Single") -> 1 | L10: =IF(ISBLANK(sel_Field_Crop_History\2_Years_Ago),"",sel_Field_Crop_History\2_Years_Ago) -> Field Corn
A11: Field\Irrigation | B11: 1 | C11: Irrigated | D11: 10 | H11: Field_Crop_History\3_Years_Ago | I11: 4 | J11: 1 | K11: =getRiskValue("A:A",H11,J11,L11,"Single") -> 1 | L11: =IF(ISBLANK(sel_Field_Crop_History\3_Years_Ago),"",sel_Field_Crop_History\3_Years_Ago) -> Cotton
A12: Field\Irrigation | B12: 2 | C12: Periodic Irrigation | D12: 8 | H12: Field_Crop_History\4_Years_ago | I12: 2 | J12: 1 | K12: =getRiskValue("A:A",H12,J12,L12,"Single") -> 2 | L12: =IF(ISBLANK(sel_Field_Crop_History\4_Years_ago),"",sel_Field_Crop_History\4_Years_ago) -> Peanut
A13: Field\Irrigation | B13: 3 | C13: Non-Irrigated | D13: 5 | H13: Treatments\Pre_Emergence | I13: 0 | J13: -10 | K13: =getRiskValue("A:A",H13,J13,L13,"Multi") -> 0 | L13: =IF(ISBLANK(sel_Treatments\Pre_Emergence),"",sel_Treatments\Pre_Emergence) -> Thimet 20G
A14: Field\Seedbed | B14: 1 | C14: Conventional | D14: 10
A15: Field\Seedbed | B15: 2 | C15: Fertilized Rye/No till|Fertilized Rye/Strip till|No cover crop/No till|No cover crop/Strip till|Rye/No till|Rye/Strip till|Wheat/No till|Wheat/Strip till | D15: 5 | H15: Total | I15: =SUMIF(I3:I13,">0") -> 111 | J15: =SUMIF(J3:J13,">0") -> 34 | K15: =MAX(SSR_MinRiskIndex,SUM(K3:K13)) -> 60
A16: Field_Crop_History\1_Year_Ago | B16: 1 | C16: Clary Sage|Melons|Peanut|Soybean|Tobacco|Vegetables | D16: 12
A17: Field_Crop_History\1_Year_Ago | B17: 2 | C17: Cotton|Fallow|Field Corn|Forage Grasses|Other|Small Grains|Sorghum|Sweet Corn|Sweetpotato | D17: 1 | H17: High Risk Index | I17: 85
A18: Field_Crop_History\2_Years_Ago | B18: 1 | C18: Clary Sage|Melons|Peanut|Soybean|Tobacco|Vegetables | D18: 8 | H18: Moderate Risk Index | I18: 65
A19: Field_Crop_History\2_Years_Ago | B19: 2 | C19: Cotton|Fallow|Field Corn|Forage Grasses|Other|Small Grains|Sorghum|Sweet Corn|Sweetpotato | D19: 1
A20: Field_Crop_History\3_Years_Ago | B20: 1 | C20: Clary Sage|Melons|Peanut|Soybean|Tobacco|Vegetables | D20: 4
A21: Field_Crop_History\3_Years_Ago | B21: 2 | C21: Cotton|Fallow|Field Corn|Forage Grasses|Other|Small Grains|Sorghum|Sweet Corn|Sweetpotato | D21: 1
A22: Field_Crop_History\4_Years_ago | B22: 1 | C22: Clary Sage|Melons|Peanut|Soybean|Tobacco|Vegetables | D22: 2
A23: Field_Crop_History\4_Years_ago | B23: 2 | C23: Cotton|Fallow|Field Corn|Forage Grasses|Other|Small Grains|Sorghum|Sweet Corn|Sweetpotato | D23: 1
A24: Pest_History\Southern_Stem_Rot | B24: 1 | C24: A problem even with good fungicide program | D24: 20
A25: Pest_History\Southern_Stem_Rot | B25: 2 | C25: Present but not a problem with a good fungicide program | D25: 15
A26: Pest_History\Southern_Stem_Rot | B26: 3 | C26: No history | D26: 5
A27: Treatments\Pre_Emergence | B27: 1 | C27: Acephate|Admire Pro|AgLogic|Imidacloprid (Generic)|None|Phorate 20G|Thimet 20G|Velum Total | D27: 0
A28: Treatments\Pre_Emergence | B28: 2 | C28: Proline|Propulse | D28: -10

Sheet NRN (hidden)
A1: Northern Rootknot
A2: Category | B2: Risk Level | C2: Risk Level Description | D2: Points | H2: Category | I2: Max | J2: Min | K2: Risk | L2: Selection
A3: Field\Seedbed | B3: 1 | C3: Conventional | D3: 15 | H3: Nematode_History\Northern_Rootknot | I3: 40 | J3: 0 | K3: =getRiskValue("A:A",H3,J3,L3,"Single") -> 0 | L3: =IF(ISBLANK(sel_Nematode_History\Northern_Rootknot),"",sel_Nematode_History\Northern_Rootknot) -> Very Low (NCDA Index < 20)
A4: Field\Seedbed | B4: 2 | C4: Fertilized Rye/No till|Fertilized Rye/Strip till|No cover crop/No till|No cover crop/Strip till|Rye/No till|Rye/Strip till|Wheat/No till|Wheat/Strip till | D4: 5 | H4: Field\Seedbed | I4: 15 | J4: 5 | K4: 15 | L4: =IF(ISBLANK(sel_Field\Seedbed),"",sel_Field\Seedbed) -> Conventional
A5: Field_Crop_History\1_Year_Ago | B5: 1 | C5: Clary Sage|Melons|Peanut|Soybean|Tobacco|Vegetables | D5: 15 | H5: Field_Crop_History\1_Year_Ago | I5: 15 | J5: 2 | K5: 2 | L5: =IF(ISBLANK(sel_Field_Crop_History\1_Year_Ago),"",sel_Field_Crop_History\1_Year_Ago) -> Cotton
A6: Field_Crop_History\1_Year_Ago | B6: 2 | C6: Cotton|Fallow|Field Corn|Forage Grasses|Other|Small Grains|Sorghum|Sweet Corn|Sweetpotato | D6: 2 | H6: Field_Soil\Texture | I6: 15 | J6: 5 | K6: 15 | L6: =IF(ISBLANK(sel_Field_Soil\Texture),"",sel_Field_Soil\Texture) -> Loamy Sand
A7: Field_Crop_History\2_Years_Ago | B7: 1 | C7: Clary Sage|Melons|Peanut|Soybean|Tobacco|Vegetables | D7: 10 | H7: Field_Crop_History\2_Years_Ago | I7: 10 | J7: 3 | K7: 3 | L7: =IF(ISBLANK(sel_Field_Crop_History\2_Years_Ago),"",sel_Field_Crop_History\2_Years_Ago) -> Field Corn
A8: Field_Crop_History\2_Years_Ago | B8: 2 | C8: Cotton|Fallow|Field Corn|Forage Grasses|Other|Small Grains|Sorghum|Sweet Corn|Sweetpotato | D8: 3 | H8: Treatments\Fumigants | I8: 0 | J8: -40 | K8: 0 | L8: =IF(ISBLANK(sel_Treatments\Fumigants),"",sel_Treatments\Fumigants) -> None
A9: Field_Soil\Texture | B9: 1 | C9: Loamy Sand | D9: 15 | H9: Treatments\Pre_Emergence | I9: 0 | J9: -10 | K9: =getRiskValue("A:A",H9,J9,L9,"Multi") -> 0 | L9: =IF(ISBLANK(sel_Treatments\Pre_Emergence),"",sel_Treatments\Pre_Emergence) -> Thimet 20G
A10: Field_Soil\Texture | B10: 2 | C10: Sandy Loam | D10: 10
A11: Field_Soil\Texture | B11: 3 | C11: Loam | D11: 5 | H11: Total | I11: =SUMIF(I3:I9,">0") -> 95 | J11: =SUMIF(J3:J9,">0") -> 15 | K11: =MAX(NRN_MinRiskIndex,SUM(K3:K9)) -> 35
A12: Nematode_History\Northern_Rootknot | B12: 1 | C12: High (NCDA Index ≥ 60) | D12: 40
A13: Nematode_History\Northern_Rootknot | B13: 2 | C13: Moderate (40 ≤ NCDA Index < 60) | D13: 30 | H13: High Risk Index | I13: 65
A14: Nematode_History\Northern_Rootknot | B14: 3 | C14: Low (20 ≤ NCDA Index < 40) | D14: 20 | H14: Moderate Risk Index | I14: 40
A15: Nematode_History\Northern_Rootknot | B15: 4 | C15: Very Low (NCDA Index < 20) | D15: 0
A16: Treatments\Fumigants | B16: 1 | C16: None | D16: 0
A17: Treatments\Fumigants | B17: 2 | C17: Metam Sodium | D17: -25
A18: Treatments\Fumigants | B18: 3 | C18: Telone II | D18: -40
A19: Treatments\Pre_Emergence | B19: 1 | C19: Acephate|Admire Pro|Imidacloprid (Generic)|None|Phorate 20G|Proline|Thimet 20G | D19: 0
A20: Treatments\Pre_Emergence | B20: 2 | C20: AgLogic|Propulse|Velum Total | D20: -10

Sheet PRN (hidden)
A1: Peanut Rootknot
A2: Category | B2: Risk Level | C2: Risk Level Description | D2: Points | H2: Category | I2: Max | J2: Min | K2: Risk | L2: Selection
A3: Field\Seedbed | B3: 1 | C3: Conventional | D3: 15 | H3: Nematode_History\Peanut_Rootknot | I3: 40 | J3: 0 | K3: =getRiskValue("A:A",H3,J3,L3,"Single") -> 0 | L3: =IF(ISBLANK(sel_Nematode_History\Peanut_Rootknot),"",sel_Nematode_History\Peanut_Rootknot) -> Very Low (NCDA Index < 20)
A4: Field\Seedbed | B4: 2 | C4: Fertilized Rye/No till|Fertilized Rye/Strip till|No cover crop/No till|No cover crop/Strip till|Rye/No till|Rye/Strip till|Wheat/No till|Wheat/Strip till | D4: 5 | H4: Field\Seedbed | I4: 15 | J4: 5 | K4: 15 | L4: =IF(ISBLANK(sel_Field\Seedbed),"",sel_Field\Seedbed) -> Conventional
A5: Field_Crop_History\1_Year_Ago | B5: 1 | C5: Clary Sage|Field Corn|Melons|Peanut|Sorghum|Soybean|Sweet Corn|Vegetables | D5: 15 | H5: Field_Crop_History\1_Year_Ago | I5: 15 | J5: 2 | K5: 2 | L5: =IF(ISBLANK(sel_Field_Crop_History\1_Year_Ago),"",sel_Field_Crop_History\1_Year_Ago) -> Cotton
A6: Field_Crop_History\1_Year_Ago | B6: 2 | C6: Cotton|Fallow|Forage Grasses|Other|Small Grains|Sweetpotato|Tobacco | D6: 2 | H6: Field_Soil\Texture | I6: 15 | J6: 5 | K6: 15 | L6: =IF(ISBLANK(sel_Field_Soil\Texture),"",sel_Field_Soil\Texture) -> Loamy Sand
A7: Field_Crop_History\2_Years_Ago | B7: 1 | C7: Clary Sage|Field Corn|Melons|Peanut|Sorghum|Soybean|Sweet Corn|Vegetables | D7: 10 | H7: Field_Crop_History\2_Years_Ago | I7: 10 | J7: 3 | K7: 10 | L7: =IF(ISBLANK(sel_Field_Crop_History\2_Years_Ago),"",sel_Field_Crop_History\2_Years_Ago) -> Field Corn
A8: Field_Crop_History\2_Years_Ago | B8: 2 | C8: Cotton|Fallow|Forage Grasses|Other|Small Grains|Sweetpotato|Tobacco | D8: 3 | H8: Treatments\Fumigants | I8: 0 | J8: -40 | K8: 0 | L8: =IF(ISBLANK(sel_Treatments\Fumigants),"",sel_Treatments\Fumigants) -> None
A9: Field_Soil\Texture | B9: 1 | C9: Loamy Sand | D9: 15 | H9: Treatments\Pre_Emergence | I9: 0 | J9: -10 | K9: =getRiskValue("A:A",H9,J9,L9,"Multi") -> 0 | L9: =IF(ISBLANK(sel_Treatments\Pre_Emergence),"",sel_Treatments\Pre_Emergence) -> Thimet 20G
A10: Field_Soil\Texture | B10: 2 | C10: Sandy Loam | D10: 10
A11: Field_Soil\Texture | B11: 3 | C11: Loam | D11: 5 | H11: Total | I11: =SUMIF(I3:I9,">0") -> 95 | J11: =SUMIF(J3:J9,">0") -> 15 | K11: =MAX(PRN_MinRiskIndex,SUM(K3:K9)) -> 42
A12: Nematode_History\Peanut_Rootknot | B12: 1 | C12: High (NCDA Index ≥ 60) | D12: 40
A13: Nematode_History\Peanut_Rootknot | B13: 2 | C13: Moderate (40 ≤ NCDA Index < 60) | D13: 30 | H13: High Risk Index | I13: 65
A14: Nematode_History\Peanut_Rootknot | B14: 3 | C14: Low (20 ≤ NCDA Index < 40) | D14: 25 | H14: Moderate Risk Index | I14: 40
A15: Nematode_History\Peanut_Rootknot | B15: 4 | C15: Very Low (NCDA Index < 20) | D15: 0
A16: Treatments\Fumigants | B16: 1 | C16: None | D16: 0
A17: Treatments\Fumigants | B17: 2 | C17: Metam Sodium | D17: -25
A18: Treatments\Fumigants | B18: 3 | C18: Telone II | D18: -40
A19: Treatments\Pre_Emergence | B19: 1 | C19: Acephate|Admire Pro|Imidacloprid (Generic)|None|Phorate 20G|Proline|Thimet 20G | D19: 0
A20: Treatments\Pre_Emergence | B20: 2 | C20: AgLogic|Propulse|Velum Total | D20: -10

Sheet SN (hidden)
A1: Sting
A2: Category | B2: Risk Level | C2: Risk Level Description | D2: Points | H2: Category | I2: Max | J2: Min | K2: Risk | L2: Selection
A3: Field\Seedbed | B3: 1 | C3: Conventional | D3: 15 | H3: Nematode_History\Sting | I3: 40 | J3: 0 | K3: =getRiskValue("A:A",H3,J3,L3,"Single") -> 0 | L3: =IF(ISBLANK(sel_Nematode_History\Sting),"",sel_Nematode_History\Sting) -> Very Low (NCDA Index < 20)
A4: Field\Seedbed | B4: 2 | C4: Fertilized Rye/No till|Fertilized Rye/Strip till|No cover crop/No till|No cover crop/Strip till|Rye/No till|Rye/Strip till|Wheat/No till|Wheat/Strip till | D4: 5 | H4: Field_Soil\Texture | I4: 20 | J4: 5 | K4: 20 | L4: =IF(ISBLANK(sel_Field_Soil\Texture),"",sel_Field_Soil\Texture) -> Loamy Sand
A5: Field_Crop_History\1_Year_Ago | B5: 1 | C5: Clary Sage|Cotton|Field Corn|Melons|Peanut|Sorghum|Soybean|Sweet Corn|Vegetables | D5: 15 | H5: Field\Seedbed | I5: 15 | J5: 5 | K5: 15 | L5: =IF(ISBLANK(sel_Field\Seedbed),"",sel_Field\Seedbed) -> Conventional
A6: Field_Crop_History\1_Year_Ago | B6: 2 | C6: Fallow|Forage Grasses|Other|Small Grains|Sweetpotato|Tobacco | D6: 2 | H6: Field_Crop_History\1_Year_Ago | I6: 15 | J6: 2 | K6: 15 | L6: =IF(ISBLANK(sel_Field_Crop_History\1_Year_Ago),"",sel_Field_Crop_History\1_Year_Ago) -> Cotton
A7: Field_Crop_History\2_Years_Ago | B7: 1 | C7: Clary Sage|Cotton|Field Corn|Melons|Peanut|Sorghum|Soybean|Sweet Corn|Vegetables | D7: 10 | H7: Field_Crop_History\2_Years_Ago | I7: 10 | J7: 3 | K7: 10 | L7: =IF(ISBLANK(sel_Field_Crop_History\2_Years_Ago),"",sel_Field_Crop_History\2_Years_Ago) -> Field Corn
A8: Field_Crop_History\2_Years_Ago | B8: 2 | C8: Fallow|Forage Grasses|Other|Small Grains|Sweetpotato|Tobacco | D8: 3 | H8: Treatments\Fumigants | I8: 0 | J8: -40 | K8: 0 | L8: =IF(ISBLANK(sel_Treatments\Fumigants),"",sel_Treatments\Fumigants) -> None
A9: Field_Soil\Texture | B9: 1 | C9: Loamy Sand | D9: 20 | H9: Treatments\Pre_Emergence | I9: 0 | J9: -10 | K9: =getRiskValue("A:A",H9,J9,L9,"Multi") -> 0 | L9: =IF(ISBLANK(sel_Treatments\Pre_Emergence),"",sel_Treatments\Pre_Emergence) -> Thimet 20G
A10: Field_Soil\Texture | B10: 2 | C10: Sandy Loam | D10: 10
A11: Field_Soil\Texture | B11: 3 | C11: Loam | D11: 5 | H11: Total | I11: =SUMIF(I3:I9,">0") -> 100 | J11: =SUMIF(J3:J9,">0") -> 15 | K11: =MAX(SN_MinRiskIndex,SUM(K3:K9)) -> 60
A12: Nematode_History\Sting | B12: 1 | C12: High (NCDA Index ≥ 60) | D12: 40
A13: Nematode_History\Sting | B13: 2 | C13: Moderate (40 ≤ NCDA Index < 60) | D13: 30 | H13: High Risk Index | I13: 65
A14: Nematode_History\Sting | B14: 3 | C14: Low (20 ≤ NCDA Index < 40) | D14: 20 | H14: Moderate Risk Index | I14: 45
A15: Nematode_History\Sting | B15: 4 | C15: Very Low (NCDA Index < 20) | D15: 0
A16: Treatments\Fumigants | B16: 1 | C16: None | D16: 0
A17: Treatments\Fumigants | B17: 2 | C17: Metam Sodium | D17: -25
A18: Treatments\Fumigants | B18: 3 | C18: Telone II | D18: -40
A19: Treatments\Pre_Emergence | B19: 1 | C19: Acephate|Admire Pro|Imidacloprid (Generic)|None|Phorate 20G|Proline|Thimet 20G | D19: 0
A20: Treatments\Pre_Emergence | B20: 2 | C20: AgLogic|Propulse|Velum Total | D20: -10

Sheet WDS (hidden)
A1: Weeds
A2: Category | B2: Risk Level | C2: Risk Level Description | D2: Points | H2: Category | I2: Max | J2: Min | K2: Risk | L2: Selection
A3: Crop_Practices\Plant_Density | B3: 1 | C3: 1 to 2 plants/row ft. | D3: 30 | H3: Field\Weeds | I3: 150 | J3: 10 | K3: =getRiskValue("A:A",H3,J3,L3,"Single") -> 70 | L3: =IF(ISBLANK(sel_Field\Weeds),"",sel_Field\Weeds) -> C. Ragweed and Palmer A.
A4: Crop_Practices\Plant_Density | B4: 2 | C4: 3 to 4 plants/row ft. | D4: 20 | H4: Field\Seedbed | I4: 90 | J4: 10 | K4: 90 | L4: =IF(ISBLANK(sel_Field\Seedbed),"",sel_Field\Seedbed) -> Conventional
A5: Crop_Practices\Plant_Density | B5: 3 | C5: 5 or more plants/row ft. | D5: 5 | H5: Crop_Practices\Plant_Density | I5: 30 | J5: 5 | K5: 5 | L5: =IF(ISBLANK(sel_Crop_Practices\Plant_Density),"",sel_Crop_Practices\Plant_Density) -> 5 or more plants/row ft.
A6: Field\Irrigation | B6: 1 | C6: Irrigated|Periodic Irrigation | D6: 20 | H6: Field\Previous_Weed_Control | I6: 30 | J6: 10 | K6: 10 | L6: =IF(ISBLANK(sel_Field\Previous_Weed_Control),"",sel_Field\Previous_Weed_Control) -> Good
A7: Field\Irrigation | B7: 2 | C7: Non-Irrigated | D7: 0 | H7: Field\Irrigation | I7: 20 | J7: 0 | K7: 20 | L7: =IF(ISBLANK(sel_Field\Irrigation),"",sel_Field\Irrigation) -> Irrigated
A8: Field\Previous_Weed_Control | B8: 1 | C8: Poor | D8: 30 | H8: Field_Crop_History\1_Year_Ago | I8: 15 | J8: 0 | K8: 5 | L8: =IF(ISBLANK(sel_Field_Crop_History\1_Year_Ago),"",sel_Field_Crop_History\1_Year_Ago) -> Cotton
A9: Field\Previous_Weed_Control | B9: 2 | C9: Fair | D9: 20 | H9: Treatments\Weed_Mgmt | I9: 0 | J9: -150 | K9: 0 | L9: =IF(ISBLANK(sel_Treatments\Weed_Mgmt),"",sel_Treatments\Weed_Mgmt) -> None
A10: Field\Previous_Weed_Control | B10: 3 | C10: Good | D10: 10
A11: Field\Seedbed | B11: 1 | C11: Conventional|No cover crop/Strip till | D11: 90 | H11: Total | I11: =SUMIF(I3:I9,">0") -> 335 | J11: =SUMIF(J3:J9,">0") -> 35 | K11: =MAX(WDS_MinRiskIndex,SUM(K3:K9)) -> 200
A12: Field\Seedbed | B12: 2 | C12: No cover crop/No till|Wheat/Strip till | D12: 80
A13: Field\Seedbed | B13: 3 | C13: Wheat/No till | D13: 60 | H13: High Risk Index | I13: 235
A14: Field\Seedbed | B14: 4 | C14: Rye/Strip till | D14: 50 | H14: Moderate Risk Index | I14: 135
A15: Field\Seedbed | B15: 5 | C15: Fertilized Rye/Strip till|Rye/No till | D15: 30
A16: Field\Seedbed | B16: 6 | C16: Fertilized Rye/No till | D16: 10
A17: Field\Weeds | B17: 1 | C17: C. Ragweed and Palmer A. (ALS and PPO Resistant) | D17: 150
A18: Field\Weeds | B18: 2 | C18: C. Ragweed and Palmer A. (PPO Resistant)|Palmer A. (ALS and PPO Resistant)|Palmer A. (PPO Resistant) | D18: 100
A19: Field\Weeds | B19: 3 | C19: Annual Grass (ACC and ALS Resistant)|C. Ragweed and Palmer A.|C. Ragweed and Palmer A. (ALS Resistant)|Palmer A.|Palmer A. (ALS Resistant) | D19: 70
A20: Field\Weeds | B20: 4 | C20: Annual Grass (ACC Resistant)|Annual Grass (ALS Resistant)|C. Ragweed (ALS and PPO Resistant)|C. Ragweed (PPO Resistant)|Sedges (ALS Resistant) | D20: 50
A21: Field\Weeds | B21: 5 | C21: Annual Grass|C. Lambsquarter|C. Ragweed|C. Ragweed (ALS Resistant)|Eclipta|Sedges|Sicklepod | D21: 20
A22: Field\Weeds | B22: 6 | C22: Others | D22: 10
A23: Field_Crop_History\1_Year_Ago | B23: 1 | C23: Fallow|Soybean|Sweetpotato|Tobacco | D23: 15
A24: Field_Crop_History\1_Year_Ago | B24: 2 | C24: Clary Sage|Melons|Other|Peanut|Sorghum|Vegetables | D24: 10
A25: Field_Crop_History\1_Year_Ago | B25: 3 | C25: Cotton|Forage Grasses|Small Grains|Sweet Corn | D25: 5
A26: Field_Crop_History\1_Year_Ago | B26: 4 | C26: Field Corn | D26: 0
A27: Treatments\Weed_Mgmt | B27: 1 | C27: EPOST|None|PPL | D27: 0
A28: Treatments\Weed_Mgmt | B28: 2 | C28: LPOST|PPI|PRE | D28: -55
A29: Treatments\Weed_Mgmt | B29: 3 | C29: MPOST|PPI + PRE|PRE + EPOST | D29: -90
A30: Treatments\Weed_Mgmt | B30: 4 | C30: PRE + EPOST + MPOST | D30: -105
A31: Treatments\Weed_Mgmt | B31: 5 | C31: PRE + EPOST + MPOST + LPOST | D31: -130
A32: Treatments\Weed_Mgmt | B32: 6 | C32: PRE + EPOST + Hand Weed|PRE + EPOST + MPOST + Hand Weed|PRE + EPOST + MPOST + LPOST + Hand Weed | D32: -150

Sheet CNW (hidden)
A1: Caterpillars and Worms
A2: Category | B2: Risk Level | C2: Risk Level Description | D2: Points | H2: Category | I2: Max | J2: Min | K2: Risk | L2: Selection
A3: Crop_Practices\Cultivar | B3: 1 | C3: Sullivan | D3: 15 | H3: Pest\Host_Crops | I3: 20 | J3: 5 | K3: =getRiskValue("A:A",H3,J3,L3,"Single") -> 15 | L3: =IF(ISBLANK(sel_Pest\Host_Crops),"",sel_Pest\Host_Crops) -> Field Corn
A4: Crop_Practices\Cultivar | B4: 2 | C4: Bailey|Bailey II|Champs|Emery|Wynne | D4: 10 | H4: Crop_Practices\Cultivar | I4: 15 | J4: 10 | K4: =getRiskValue("A:A",H4,J4,L4,"Single") -> 10 | L4: =IF(ISBLANK(sel_Crop_Practices\Cultivar),"",sel_Crop_Practices\Cultivar) -> Bailey II
A5: Crop_Practices\Planting_Date | B5: 1 | C5: 136 to 365 | D5: 15 | H5: Crop_Practices\Planting_Date | I5: 15 | J5: 5 | K5: =getRiskValue("A:A",H5,J5,L5,"Date") -> 10 | L5: =IF(ISBLANK(sel_Crop_Practices\Planting_Date),"",sel_Crop_Practices\Planting_Date) -> 2021-05-01
A6: Crop_Practices\Planting_Date | B6: 2 | C6: 121 to 135 | D6: 10 | H6: Treatments\Post_Insecticide | I6: 0 | J6: -20 | K6: =getRiskValue("A:A",H6,J6,L6,"Multi") -> 0 | L6: =IF(ISBLANK(sel_Treatments\Post_Insecticide),"",sel_Treatments\Post_Insecticide) -> Lorsban (Pilot 15 G)
A7: Crop_Practices\Planting_Date | B7: 3 | C7: 001 to 120 | D7: 5
A8: Pest\Host_Crops | B8: 1 | C8: Sweet Corn | D8: 20 | H8: Total | I8: =SUMIF(I3:I6,">0") -> 50 | J8: =SUMIF(J3:J6,">0") -> 20 | K8: =MAX(CNW_MinRiskIndex,SUM(K3:K6)) -> 35
A9: Pest\Host_Crops | B9: 2 | C9: Field Corn | D9: 15
A10: Pest\Host_Crops | B10: 3 | C10: Clary Sage|Cotton|Melons|Peanut|Small Grains|Sorghum|Soybean|Tobacco|Vegetables | D10: 10 | H10: High Risk Index | I10: 35
A11: Pest\Host_Crops | B11: 4 | C11: Fallow|Forage Grasses|Other|Sweetpotato | D11: 5 | H11: Moderate Risk Index | I11: 28
A12: Treatments\Post_Insecticide | B12: 1 | C12: None|Acephate|Brigade|Comite|Danitol|Lannate|Lorsban (Pilot 15 G)|Portal | D12: 0
A13: Treatments\Post_Insecticide | B13: 2 | C13: Pyrethroids | D13: -10
A14: Treatments\Post_Insecticide | B14: 3 | C14: Non-pyrethroids | D14: -20
